Cogmind - Beta 14 @@@ ROGUE MODE // 2024.09.07 @ 01:20:00 Player: szymekc Result: Escaped! Performance ------------- Evolutions (9) 4500 Regions Visited (27) 5400 Robots Destroyed (438) 2190 Value Destroyed (25813) 25813 Prototype IDs (237) 4740 Alien Tech Used (8) 1600 Bonus (23795) 23795 TOTAL SCORE: 68038 Bonus ------- High Alert Combat Kills 5017 Follower Combat Kills 1947 Network Hubs Disabled 800 Met Data Miner 300 Used Data Conduit 3000 Met Warlord at Base 500 MAIN.C Attacked Warlord 500 Warlord Defense Kills 654 Built Enhanced Grunts 300 Met R17 at Cetus 500 Found Hidden Lab 3000 Decrypted A0 Command 3000 Met R17 at Research 2000 Scanned by Researcher 500 Pursued by Intercept 1500 Win 3000 Friendly Fire -2723 Cogmind --------- Core Integrity 1253/1600 Matter 289/300 Energy 100/100 System Corruption 9% Temperature Cool (2) Movement Flying (30) Location To Epsilon Eridani Parts ------- > --- POWER (3) -------- (None) > --- PROPULSION (8) --- Combat Linear Gravjet Cooled Q-thruster > --- UTILITY (11) ----- (None) > --- WEAPON (3) ------- Centrium Greatsword > --- INVENTORY (5) ---- Heavy Regenerative Plating Compact Tesla Bomb Launcher Core Stripper Peak State ------------ > --- POWER ------------ Quantum Reactor Vortex Chain Reactor > --- PROPULSION ------- Heavy Siege Treads Centrium Heavy Treads Advanced Heavy Siege Treads > --- UTILITY ---------- Experimental Cooling System Huge Storage Unit Quantum Capacitor Transmission Jammer Advanced Cloaking Device Advanced Powered Armor Phase Armor Advanced Force Field Deep Network Scanner > --- WEAPON ----------- Enhanced Nova Cannon Sigix Broadsword > --- INVENTORY -------- Advanced Coolant Injector Experimental Energy Well Experimental Energy Well Experimental Matter Compressor Experimental Targeting Computer Particle Accelerator Experimental Phase Shifter Centrium Heavy Armor Plating Graphene Brace Experimental EM Disruption Field Dimensional Node Initializer Transdimensional Reconstructor High-powered Transdimensional Reconstructor Subatomic Replicator Vortex Shotgun Vortex Shotgun Compact HERF Cannon EMDS Warp Cannon Core Stripper [Rating: 229] Favorites ----------- Power Quantum Reactor Engine Cooled Deuterium Engine Power Core Enhanced Nuclear Core Reactor Quantum Reactor Propulsion Centrium Heavy Treads Treads Centrium Heavy Treads Leg Enhanced Flexi-carbon Leg Wheel Armored Wheel Hover Unit Improved Antigrav System Flight Unit Cooled Q-thruster Utility Centrium Medium Armor Plating Device Sensor Drone Bay Storage Huge Storage Unit Processor Machine Analyzer Hackware Deep Network Scanner Protection Centrium Medium Armor Plating Artifact Phase Armor Weapon Subdweller Beam Cannon Energy Gun Improved Spread Laser Energy Cannon Subdweller Beam Cannon Ballistic Gun High-powered Shotgun Ballistic Cannon Light Cannon Launcher Advanced EMP Blaster Special Weapon Mining Laser Impact Weapon Powered Hammer Slashing Weapon Sigix Broadsword Build | -11 -10 -10 -10 -8 -7 -7 -7 -7 -6 -6 -6 -6 -6 -6 -5 -5 -5 -5 -4 -4 -4 -4 -3 -3 -2 -2 -1 ------- Run | Yrd Mat Min Sub Mat Fac Low Low Dat Pro Fac Ext Cet Arc Hub Fac Upp Upp War Pro Fac Arm Lab Res Qua Res Tes Acc Slots Evolved 18 | . . . . 4 2 . . . . 2 . . . . 2 . . . . 2 . . 2 . 2 . 2 Power 2 | . . . . . 1 . . . . . . . . . . . . . . . . . 1 . . . . Propulsion 6 | . . . . 2 . . . . . 1 . . . . 1 . . . . . . . . . . . 2 Utility 9 | . . . . 2 1 . . . . . . . . . 1 . . . . 2 . . 1 . 2 . . Weapon 1 | . . . . . . . . . . 1 . . . . . . . . . . . . . . . . . Parts Attached 462 | 5 10 5 26 39 27 8 4 12 2 5 4 13 12 53 3 2 7 8 3 12 34 12 6 27 63 50 10 Power 31 | . 1 . 1 3 4 . . 2 . . . 2 . 5 . . . 1 . . 1 . 1 2 2 4 2 Engine 9 | . 1 . 1 2 3 . . 2 . . . . . . . . . . . . . . . . . . . Core 2 | . . . . 1 1 . . . . . . . . . . . . . . . . . . . . . . Reactor 20 | . . . . . . . . . . . . 2 . 5 . . . 1 . . 1 . 1 2 2 4 2 Propulsion 63 | 2 3 . . 15 1 . . 3 . 1 . 4 1 4 1 . . . . 2 . 2 1 . 9 8 6 Treads 36 | 2 3 . . 9 . . . . . . . 2 1 4 1 . . . . 2 . 2 1 . 9 . . Leg 13 | . . . . 3 1 . . 3 . 1 . 2 . . . . . . . . . . . . . 3 . Wheel 6 | . . . . 3 . . . . . . . . . . . . . . . . . . . . . 3 . Hover 6 | . . . . . . . . . . . . . . . . . . . . . . . . . . . 6 Flight 2 | . . . . . . . . . . . . . . . . . . . . . . . . . . 2 . Utility 175 | 2 2 1 1 4 10 4 . 6 2 1 2 4 9 13 2 1 4 2 . 8 23 3 4 21 32 14 . Device 128 | 2 . 1 . 2 5 2 . 5 1 . 2 1 8 10 1 1 4 2 . 4 18 1 4 18 26 10 . Storage 5 | . 2 . 1 . . . . . . . . 1 . . . . . . . . . . . . . 1 . Processor 5 | . . . . . 1 . . . . . . . . . . . . . . 1 . . . . 2 1 . Hackware 5 | . . . . . 1 . . . . . . . . 1 1 . . . . . 1 1 . . . . . Protection 30 | . . . . 2 3 2 . 1 1 1 . 2 1 2 . . . . . 3 4 1 . 1 4 2 . Artifact 2 | . . . . . . . . . . . . . . . . . . . . . . . . 2 . . . Weapon 193 | 1 4 4 24 17 12 4 4 1 . 3 2 3 2 31 . 1 3 5 3 2 10 7 . 4 20 24 2 Energy Gun 16 | . . . . 1 2 2 1 . . . . . . . . . . 1 . . 2 1 . . 1 5 . Energy Cannon 83 | . . . 7 6 1 . . 1 . 1 . 1 . 9 . . 1 3 . 1 7 5 . 3 19 18 . Ballistic Gun 26 | 1 . . 2 5 6 . . . . . . 1 2 9 . . . . . . . . . . . . . Ballistic Cannon 13 | . 4 2 5 . . . . . . . . . . . . . 2 . . . . . . . . . . Launcher 16 | . . 2 . 2 3 2 1 . . . 1 . . 1 . . . . 2 . 1 . . . . 1 . Special Weapon 11 | . . . 5 . . . . . . . . . . 5 . . . . . . . 1 . . . . . Impact Weapon 2 | . . . . . . . . . . 1 . . . . . . . . . . . . . . . . 1 Slashing Weapon 26 | . . . 5 3 . . 2 . . 1 1 1 . 7 . 1 . 1 1 1 . . . 1 . . 1 Piercing Weapon . | . . . . . . . . . . . . . . . . . . . . . . . . . . . . Special Melee Weapon . | . . . . . . . . . . . . . . . . . . . . . . . . . . . . Unidentified Prototypes 22 | . . 1 . 4 3 . . . . . . . . 1 . . . 2 . . . 6 . 3 . 2 . Corrupted Parts 17 | . . . . . . . . . . . . 3 2 7 . . . . . . . . . 2 . 3 . System Corruption 121 | . . . . . . . . . . . . 21 12 48 . . . . . . . . . 10 . 30 . Parts Lost 40 | . . . . 5 1 . . . . . . 1 . . . . . . . . 1 . . 1 1 24 6 Power 9 | . . . . 1 . . . . . . . 1 . . . . . . . . . . . 1 . 6 . Propulsion 16 | . . . . 3 . . . . . . . . . . . . . . . . . . . . . 8 5 Utility 11 | . . . . 1 1 . . . . . . . . . . . . . . . 1 . . . 1 7 . Weapon 4 | . . . . . . . . . . . . . . . . . . . . . . . . . . 3 1 Highest Loss Streak 10 | . . . . 5 1 . . . . . . 1 . . . . . . . . 1 . . 1 1 10 10 To Critical Strikes 1 | . . . . . . . . . . . . . . . . . . . . . . . . . . 1 . Average Slot Usage (%) 83 | . 99 100 100 88 82 93 93 84 87 84 83 86 84 83 75 76 76 81 82 80 72 70 76 72 68 60 29 Engine 6 | . 14 14 14 8 11 13 13 14 18 16 16 6 6 3 . . . . . . . . . . . . . Reactor 4 | . . . . . . . . . . . . 4 6 8 11 11 11 11 11 10 5 5 9 8 8 6 3 Treads 14 | . 27 28 28 19 . . . . . . . 2 14 20 17 17 17 17 17 14 15 15 14 14 12 9 . Leg 4 | . . . . . 20 20 20 18 18 22 22 19 4 . . . . . . . . . . . . 1 . Device 14 | . 14 14 14 8 8 13 13 14 17 12 11 15 15 13 11 11 11 12 17 20 23 17 22 20 21 13 . Storage 7 | . 14 14 14 8 6 6 6 6 6 5 5 5 6 6 5 5 5 5 5 5 5 5 4 4 4 5 1 Processor 1 | . . . . . 6 6 6 6 6 5 5 3 . . . . . . . 5 . . . . 3 3 . Hackware 2 | . . . . . 3 6 6 6 6 5 5 3 . . 4 5 5 3 . . 1 5 4 4 4 3 . Protection 5 | . . . . 8 9 12 13 10 6 5 5 6 8 13 11 11 11 11 11 7 5 5 4 1 3 4 . Energy Cannon 7 | . . . 16 9 . . . 5 6 5 5 5 3 4 11 5 7 9 11 9 13 14 14 13 3 3 . Ballistic Gun 2 | . 3 . 2 6 8 . . . . . . 1 10 10 . . . . . . . . . . . . . Ballistic Cannon 3 | . 24 27 4 . . . . . . . . . . . . . 1 6 . . . . . . . . . Slashing Weapon 1 | . . . 3 1 . . . . . 4 . 1 4 . . 4 1 . 4 4 . . . . 4 2 2 Peak Build Rating 229 | 7 9 16 24 53 72 75 72 102 102 115 110 125 128 137 156 156 156 153 152 166 169 171 189 213 229 226 86 Average Rating 108 | 6 8 12 20 34 66 72 72 84 101 108 108 115 118 126 154 152 151 148 151 161 164 161 187 194 211 200 71 On Entrance 108 | 6 7 9 16 24 53 72 72 72 102 102 108 108 125 121 136 156 152 147 152 149 154 165 171 185 213 211 50 Naked Turns . | . . . . . . . . . . . . . . . . . . . . . . . . . . . . Heaviest Build 227 | 15 32 43 73 93 94 97 90 108 107 120 123 159 159 175 177 178 182 187 184 191 183 185 195 227 224 204 13 Greatest Support 240 | 40 40 40 40 91 91 91 91 111 111 139 139 160 183 183 240 240 240 240 240 240 240 240 240 230 235 215 26 Greatest Overweight (x) 57 | . . 1 1 5 1 1 . . . . . 1 . 1 . . . . . . . . . . 1 57 . Average Overweight (x) . | . . . 1 2 . . . . . . . . . . . . . . . . . . . . . . . Largest Inventory Capacity 25 | 8 15 15 20 20 20 20 20 20 20 20 20 25 25 25 25 25 25 25 25 25 25 25 25 25 25 25 5 Average Capacity 21 | 8 13 15 18 20 20 20 20 20 20 20 20 24 25 25 25 25 25 25 25 25 25 25 25 25 25 24 5 Most Carried 25 | 8 15 15 20 20 20 19 20 20 20 20 20 25 25 25 25 25 25 25 25 25 25 25 25 25 25 25 5 Average Carried 21 | 6 12 15 18 19 19 19 19 19 19 19 19 23 24 24 23 25 25 24 25 24 24 22 24 24 24 23 4 Final Capacity 25 | 8 15 15 20 20 20 20 20 20 20 20 20 25 25 25 25 25 25 25 25 25 25 25 25 25 25 5 5 Final Carried 25 | 6 15 15 20 19 19 19 20 20 20 20 20 25 25 24 25 25 25 25 25 25 25 25 25 25 25 5 5 Class Distribution -------------------- 39% | Mutant 19% | Scavenger-Mutant 17% | Scavenger-Tank 12% | Hacker-Mutant 6% | Hacker-Gunner Dominant Class ---------------- Mutant | -10/Materials Mutant | -10/Mines Mutant | -10/Subcaves Mutant | -8/Materials Mutant | -7/Factory Mutant | -7/Lower Caves Mutant | -7/Lower Caves Scavenger-Mutant | -7/Data Miner Scavenger-Mutant | -6/Proximity Caves Scavenger-Mutant | -6/Factory Scavenger-Mutant | -6/Extension Scavenger-Tank | -6/Cetus Scavenger-Mutant | -6/Archives Scavenger-Tank | -6/Hub_04(d) Scavenger-Tank | -5/Factory Scavenger-Mutant | -5/Upper Caves Scavenger-Tank | -5/Upper Caves Scavenger-Tank | -5/Warlord Scavenger-Mutant | -4/Proximity Caves Scavenger-Mutant | -4/Factory Scavenger-Tank | -4/Armory Scavenger-Tank | -4/Lab Hacker-Gunner | -3/Research Hacker-Gunner | -3/Quarantine Hacker-Mutant | -2/Research Hacker-Mutant | -2/Testing Sprinter | -1/Access Resources | -11 -10 -10 -10 -8 -7 -7 -7 -7 -6 -6 -6 -6 -6 -6 -5 -5 -5 -5 -4 -4 -4 -4 -3 -3 -2 -2 -1 ----------- Run | Yrd Mat Min Sub Mat Fac Low Low Dat Pro Fac Ext Cet Arc Hub Fac Upp Upp War Pro Fac Arm Lab Res Qua Res Tes Acc Matter Collected 9193 | 308 530 112 273 538 703 323 55 120 20 . 89 194 438 1170 55 273 350 600 67 128 360 154 320 447 768 729 69 Remotely . | . . . . . . . . . . . . . . . . . . . . . . . . . . . . Salvage Created 25159 | 151 608 96 251 873 1077 577 760 390 401 66 884 400 357 1848 55 452 750 259 217 994 1964 . 903 1647 4224 4791 164 Parts 1026 | 15 49 12 21 47 47 25 12 17 16 1 27 14 38 98 3 5 26 7 16 48 73 . 25 90 114 176 4 Haulers Intercepted 10 | . 2 . . 1 . . . . . . 1 . . 1 . . . . . . . . 2 . 2 1 . Recyclers Shooed 5 | 1 2 . . . . . . . . . . . . . . . . . . 1 . . 1 . . . . Parts Field Recycled . | . . . . . . . . . . . . . . . . . . . . . . . . . . . . Retrieved Matter . | . . . . . . . . . . . . . . . . . . . . . . . . . . . . Parts Self-Destructed 62 | . . . 12 . . 12 1 . 16 . . . . . . . 8 . 13 . . . . . . . . Prevented 37 | . . . . . . 10 6 . . . . . . . . 3 18 . . . . . . . . . . Kills | -11 -10 -10 -10 -8 -7 -7 -7 -7 -6 -6 -6 -6 -6 -6 -5 -5 -5 -5 -4 -4 -4 -4 -3 -3 -2 -2 -1 ------- Run | Yrd Mat Min Sub Mat Fac Low Low Dat Pro Fac Ext Cet Arc Hub Fac Upp Upp War Pro Fac Arm Lab Res Qua Res Tes Acc Combat Hostiles Destroyed 342 | . 16 6 6 11 23 11 4 4 9 1 8 4 . 21 1 4 13 5 12 15 34 . 6 23 50 53 2 Melee 5 | . . . . 3 . . . . . . . . . . . . . . . 1 . . . . . . 1 Guns 52 | . 2 . . 2 19 6 1 . . . . . . 8 . . . . . . 3 . . . 3 8 . Cannons 123 | . 14 1 5 4 . . . 2 8 1 6 . . 6 . 1 8 2 5 12 14 . . 9 15 10 . AOE 47 | . . 5 . 2 4 5 2 . . . . . . 3 . . . 2 7 2 6 . . . 1 8 . Classes Destroyed 27 | 2 6 . 1 6 3 . 1 . . . . . . 3 . . . 1 . . 1 . . 1 1 1 . Worker 22 | . 3 . . 1 4 . . . . . . . . 7 . . . . . 3 . . . . . 4 . Builder 13 | . . . . 1 . . . . . . 1 . . 2 . . . . . 2 . . . . . 7 . Tunneler 5 | 5 . . . . . . . . . . . . . . . . . . . . . . . . . . . Hauler 10 | . 2 . . 1 . . . . . . 1 . . 1 . . . . . . . . 2 . 2 1 . Recycler 10 | 1 1 1 . 1 . . . . . . 1 . . 1 . . . . . 2 . . 1 . . 1 . Mechanic 2 | . . . . 1 1 . . . . . . . . . . . . . . . . . . . . . . Operator 12 | . 2 . . 1 . . . . . . . . 9 . . . . . . . . . . . . . . Drone 1 | . . . . . . . . . . . . . . 1 . . . . . . . . . . . . . Watcher 17 | . 3 . . 1 . . . . . . 2 1 . . . . . . . 1 3 . 2 2 1 . 1 Swarmer 45 | . 8 6 . . . 2 . . 4 . 2 . . . . . 2 . 9 3 4 . . 3 2 . . Saboteur 2 | . . . . . . . . . . . . . . 1 . . . . . . 1 . . . . . . Grunt 124 | . 8 . . 5 15 5 4 . 3 . 4 . . 7 . 3 8 4 . 2 9 . 4 5 14 24 . Brawler 7 | . . . . . 1 2 . . 1 . . . . . . 1 . . . . . . . . 1 1 . Duelist 7 | . . . . . 1 1 . . . . . . . . . . . . . 1 3 . . . . 1 . Protector 5 | . . . . . . . . . . . . . . 3 . . . . . . 2 . . . . . . Researcher 1 | . . . . . . . . . . . . . . . . . . . . . . . . . . 1 . Sentry 19 | . . . . 2 3 . . . 1 1 2 . . . . . 1 . 1 3 3 . . . 2 . . Demolisher 3 | . . . . . . . . . . . . . . . . . . . . . 1 . . . 2 . . Specialist 6 | . . . . 2 . . . . . . . . . . . . . . . . 4 . . . . . . Hunter 33 | . . . . 1 . 1 . . . . . . . . 1 . 2 . 2 4 . . 2 . 2 18 . Programmer 24 | . . . . . 3 . . . . . . . . . . . . . . 2 6 . . 4 2 5 2 Heavy 3 | . . . . 1 . . . . . . . . . 1 . . . . . . 1 . . . . . . Cetus Guard 4 | . . . . . . . . . . . . 4 . . . . . . . . . . . . . . . Quarantine Guard 10 | . . . . . . . . . . . . . . . . . . . . . . . . 10 . . . Enhanced Grunt 6 | . . . . . . . . 4 . . . . . 2 . . . . . . . . . . . . . Lightning 9 | . . . . . . . . . . . . . . 9 . . . . . . . . . . . . . Tracker 8 | . . . . . . . . . . . . . . . . . . . . . . . . . 6 2 . Combat Programmer 6 | . . . . . . . . . . . . . . . . . . . . . . . . . 4 2 . Striker 8 | . . . . . . . . . . . . . . . . . . 1 . . . . . . 7 . . Executioner 8 | . . . . . . . . . . . . . . . . . . . . . . . . . 8 . . Alpha 7 1 | . . . . . . . . . . . . . . . . . . . . . . . . 1 . . . Subdweller 6 | . . . 6 . . . . . . . . . . . . . . . . . . . . . . . . Decomposer 1 | . . . . . . . 1 . . . . . . . . . . . . . . . . . . . . Thug 2 | . . . . . . . . . . . . 1 . . . . . 1 . . . . . . . . . Savage 1 | . . . . . . . . . . . . . . . . 1 . . . . . . . . . . . Guerrilla 2 | . . . . . . . . . . . 2 . . . . . . . . . . . . . . . . Mutant 1 | . . . . . . . 1 . . . . . . . . . . . . . . . . . . . . Best Kill Streak 32 | 4 6 4 1 2 7 3 4 1 4 1 2 3 4 11 1 2 7 3 6 8 5 . 3 5 6 32 2 Combat Bots Only 17 | . 3 3 1 2 5 3 4 1 4 1 2 3 . 8 1 2 7 3 6 5 5 . 2 5 6 17 2 Max Kills in Single Turn 5 | 1 1 3 1 1 5 1 1 1 1 1 1 1 1 2 1 1 1 3 3 3 2 . 1 1 2 3 1 Gunslinging . | . . . . . . . . . . . . . . . . . . . . . . . . . . . . Exploded 3 | . . 2 . 1 2 1 1 . . . . . . 1 . . . 2 3 2 2 . . . 1 2 . Melee 1 | . . . . 1 . . . . . . . . . . . . . . . 1 . . . . . . 1 Uniques/NPCs Destroyed . | . . . . . . . . . . . . . . . . . . . . . . . . . . . . Combat | -11 -10 -10 -10 -8 -7 -7 -7 -7 -6 -6 -6 -6 -6 -6 -5 -5 -5 -5 -4 -4 -4 -4 -3 -3 -2 -2 -1 -------- Run | Yrd Mat Min Sub Mat Fac Low Low Dat Pro Fac Ext Cet Arc Hub Fac Upp Upp War Pro Fac Arm Lab Res Qua Res Tes Acc Hostile Shots Fired 2149 | . 74 16 13 52 215 39 6 18 36 9 56 44 2 111 . 2 31 1 41 65 179 . 36 99 391 535 78 Missed 617 | . 21 3 4 12 73 11 3 8 16 2 18 15 . 22 . . 11 . 11 20 47 . 15 20 80 160 45 Damage Taken 25029 | . 477 159 185 1323 1240 321 36 326 293 47 667 697 68 1886 . 38 341 19 302 495 1822 . 191 1057 3891 8116 1032 Core 1930 | . 71 17 20 70 102 13 . 35 33 . 69 78 . 65 . . . . 27 . 83 . 19 238 248 395 347 Absorbed by Shields 5493 | . . . . 18 471 123 14 80 . . 175 119 . . . . . . 292 418 773 . 183 515 2312 . . Reduced by Siege Mode 1184 | . . . . . . . . . . . . . . 100 . . . . 2 30 232 . 21 88 253 458 . Redirected to Core 124 | . . . . . . . . . . . . . . . . . . . . . . . . 124 . . . Ignored by Resistances 5109 | . . . . . . . . 42 6 . . . . 1288 . . . . . 89 278 . . 318 2144 944 . Regen/Repaired (Parts) 3608 | . 192 . . . 666 . . . . . . . . . . . . 111 . . 403 . 12 71 725 1428 . Core Remaining (%) 78 | 100 . . 56 87 . . . . 73 . . . . 75 . . . . 97 . . 100 . 80 . 40 78 Volleys Fired 1405 | 13 58 6 41 30 95 25 18 34 19 5 49 21 60 93 3 18 37 13 11 42 183 6 51 122 203 148 1 Largest 3 | 2 2 2 2 2 2 2 2 1 1 1 1 1 2 3 1 1 1 3 2 2 1 1 2 1 1 1 1 Hottest 190 | 40 70 70 160 160 144 144 144 120 40 40 120 40 123 160 70 70 90 190 100 140 120 120 160 120 120 120 60 Shots Fired 1718 | 26 116 8 58 54 182 39 32 34 19 5 49 24 64 145 3 18 37 21 17 55 184 7 52 123 204 141 1 Gun 504 | 26 33 . 1 24 177 30 29 . . . . 1 59 75 . . . . . . 11 . . . 5 32 1 Cannon 1131 | . 83 4 37 26 . . . 34 19 5 49 15 5 61 3 18 37 21 12 55 168 7 52 123 199 98 . Launcher 63 | . . 4 . 4 5 9 3 . . . . 8 . 9 . . . . 5 . 5 . . . . 11 . Special 20 | . . . 20 . . . . . . . . . . . . . . . . . . . . . . . . Kinetic 457 | 26 116 4 3 24 149 . . . . . . 1 59 75 . . . . . . . . . . . . . Thermal 672 | . . . 55 26 28 30 29 34 19 5 49 15 5 40 . . 7 8 . 37 94 7 13 63 90 18 . Explosive 23 | . . 4 . . . . . . . . . . . 9 . . . . 5 . 5 . . . . . . Electromagnetic 474 | . . . . 4 5 9 3 . . . . 8 . 21 3 18 30 . . . 74 . 39 60 109 91 . Entropic 92 | . . . . . . . . . . . . . . . . . . 13 12 18 11 . . . 5 32 1 Robot Hit Streak 42 | 12 7 3 11 7 16 6 15 14 4 3 6 7 9 11 6 13 14 6 9 15 38 . 4 20 32 42 . Robot Miss Streak 10 | 2 3 2 1 3 10 7 2 2 2 . 3 2 5 3 . 1 1 3 2 2 3 . 3 2 1 5 . Penetration Max 2 | . . . . . . . . . . . . . 1 2 . . . . . . . . . . . 1 . Secondary Targets 1 | . . . . . . . . . . . . . . 1 . . . . . . . . . . . . . Max Gunslinging Chain 1 | . . . . . . . . . . . . . . 1 . . . . . . . . . . . . . Capacitor 691 | . . . . . . . . . . . . . . . . . . . . 26 179 7 50 123 199 107 . Shots Hit Robots 1172 | 19 66 3 23 49 131 20 25 17 12 1 35 12 43 91 2 15 25 10 11 49 119 . 24 76 168 123 3 Core Hits 626 | 7 29 7 5 25 72 25 28 8 8 1 8 15 18 65 . 3 8 13 13 30 55 . 7 24 61 91 . Critical Kills 37 | . . . 1 . . . . 2 1 . 2 2 9 12 . . . . . . . . . 1 7 . . Critical Parts Destroyed 19 | . . . . . 1 . . . . . 1 . 10 5 . . . . . . . . . . . 2 . Critical Strikes 114 | . 3 . 1 2 1 1 . 2 1 . 3 2 19 24 1 5 5 4 4 10 3 . 1 8 8 6 . Burn 1 | . . . . . . 1 . . . . . . . . . . . . . . . . . . . . . Meltdown 16 | . . . 1 . . . . 2 1 . 2 2 . . . . . . . . . . . 1 7 . . Destroy 38 | . . . . . 1 . . . . . . . 19 18 . . . . . . . . . . . . . Blast 3 | . 3 . . . . . . . . . . . . . . . . . . . . . . . . . . Corrupt 33 | . . . . . . . . . . . . . . 6 1 5 5 . . . 3 . 1 7 1 4 . Smash 1 | . . . . . . . . . . . 1 . . . . . . . . . . . . . . . . Sever 2 | . . . . 2 . . . . . . . . . . . . . . . . . . . . . . . Detonate 2 | . . . . . . . . . . . . . . . . . . . . . . . . . . 2 . Sunder 18 | . . . . . . . . . . . . . . . . . . 4 4 10 . . . . . . . Melee Attacks 197 | . . . 66 22 . . 5 . . 7 15 . . 9 . 2 2 1 . 20 . . . . 14 18 16 Kinetic 2 | . . . . . . . . . . . . . . . . . . . . . . . . . . . 2 Impact 16 | . . . . . . . . . . 1 15 . . . . . . . . . . . . . . . . Slashing 179 | . . . 66 22 . . 5 . . 6 . . . 9 . 2 2 1 . 20 . . . . 14 18 14 Piercing . | . . . . . . . . . . . . . . . . . . . . . . . . . . . . Sneak Attacks 15 | . . . . 2 . . . . . . 6 . . 1 . . . . . 2 . . . . 1 3 . Combat Hostiles . | . . . . . . . . . . . . . . . . . . . . . . . . . . . . Follow-up Attacks . | . . . . . . . . . . . . . . . . . . . . . . . . . . . . Damage Inflicted 57556 | 235 1124 366 606 1375 3666 1008 850 872 620 55 2722 1240 385 4567 116 645 1188 1443 1369 3442 6463 . 1133 3573 8117 10173 203 Guns 8845 | 232 283 . 12 269 2482 334 525 . . . . 7 302 1247 . . . . . . 795 . . . 414 1943 . Cannons 34637 | . 835 15 594 424 . . . 872 620 55 2142 711 83 1931 116 645 1188 856 553 2213 4348 . 1133 3573 7409 4321 . Explosions 11297 | . . 351 . 162 1066 661 285 . . . . 522 . 1276 . . . 587 816 793 1320 . . . 158 3300 . Melee 2597 | . . . . 520 . . . . . . 580 . . 113 . . . . . 436 . . . . 136 609 203 Ramming 180 | 3 6 . . . 118 13 40 . . . . . . . . . . . . . . . . . . . . Kinetic 5432 | 232 1118 15 28 269 2112 . . . . . . 7 302 1247 . . . . . . . . . . . . 102 Thermal 20072 | . . . 578 424 370 477 525 872 620 55 2142 711 83 1016 . . 79 673 . 1778 2671 . . 1299 3592 2107 . Explosive 4070 | . . 351 . . 763 . . . . . . . . 1276 . . . . 816 . 778 . . . 86 . . Electromagnetic 19604 | . . . . 162 303 518 285 . . . . 522 . 915 116 645 1109 . . . 2219 . 1133 2274 3889 5514 . Impact 580 | . . . . . . . . . . . 580 . . . . . . . . . . . . . . . . Slashing 1915 | . . . . 520 . . . . . . . . . 113 . . . . . 436 . . . . 136 609 101 Piercing . | . . . . . . . . . . . . . . . . . . . . . . . . . . . . Entropic 5703 | . . . . . . . . . . . . . . . . . . 770 553 1228 795 . . . 414 1943 . Highest Corruption 71 | . . . . 7 4 . . . . . 2 23 23 71 . . . . . 2 2 2 . 11 7 59 9 Average Corruption 5 | . . . . 7 2 . . . . . 1 6 10 22 . . . . . 1 2 2 . 1 1 13 2 Corruption Purged 41 | . . . . . 4 . . . . . . . 35 . . . . . . . . . . 2 . . . Corruption Blocked 17 | . . . . . . . . . . . . . . . . . . . . . . . . . . 17 . Effects 188 | . . . . 2 24 . . . . . 11 13 17 26 . . . . . 5 13 10 . 5 13 47 2 Message Errors 53 | . . . . . 10 . . . . . 4 2 6 6 . . . . . 3 3 1 . . 4 13 1 Matter Fused 47 | . . . . 2 5 . . . . . 1 3 5 5 . . . . . . 1 7 . . 4 13 1 Heat Flow Errors 19 | . . . . . 3 . . . . . 3 2 2 3 . . . . . . 2 . . 1 1 2 . Energy Discharges 17 | . . . . . 1 . . . . . 2 1 2 1 . . . . . 1 2 . . 3 1 3 . Parts Rejected 3 | . . . . . 1 . . . . . . 1 . . . . . . . . . . . . 1 . . Parts Fused 1 | . . . . . . . . . . . . . . . . . . . . . . . . . . 1 . Data Loss (minor) 16 | . . . . . 2 . . . . . 1 1 . 4 . . . . . . 3 1 . . . 4 . Data Loss (major) 5 | . . . . . 1 . . . . . . . . . . . . . . 1 1 . . . 1 1 . Misfires 14 | . . . . . 1 . . . . . . 3 2 3 . . . . . . 1 1 . 1 1 1 . Alerts 1 | . . . . . . . . . . . . . . 1 . . . . . . . . . . . . . Misdirections 1 | . . . . . . . . . . . . . . . . . . . . . . . . . . 1 . Weapon Failures 11 | . . . . . . . . . . . . . . 3 . . . . . . . . . . . 8 . Overload Shots 14 | . . . . . . . . 7 . . 7 . . . . . . . . . . . . . . . . Overflow Damage 2471 | . 22 22 . 4 171 2 22 46 . . 390 . . 262 . 86 93 . 81 304 196 . 11 156 91 423 89 Projectiles 1154 | . 22 . . 4 . . . 46 . . 125 . . 144 . 86 93 . 57 89 157 . 11 156 91 73 . Explosions 554 | . . 22 . . 149 2 . . . . . . . 30 . . . . 24 98 39 . . . . 190 . Melee 763 | . . . . . 22 . 22 . . . 265 . . 88 . . . . . 117 . . . . . 160 89 Knockbacks 17 | . 12 . . . 2 . . . . . 3 . . . . . . . . . . . . . . . . Impact 5 | . . . . . 2 . . . . . 3 . . . . . . . . . . . . . . . . Kinetic 9 | . 9 . . . . . . . . . . . . . . . . . . . . . . . . . . Secondary 3 | . 3 . . . . . . . . . . . . . . . . . . . . . . . . . . Self-Inflicted Damage 877 | . . 62 . . 13 . . . . . . 19 . . . . . . 79 241 . . . . . 463 . Shots 22 | . . 2 . . 1 . . . . . . 1 . . . . . . 2 3 . . . . . 13 . Rammed 5 | 4 1 . . . . . . . . . . . . . . . . . . . . . . . . . . Targets Rammed 15 | 4 1 . . . 6 1 3 . . . . . . . . . . . . . . . . . . . . Kicked 10 | . . . . . 6 1 3 . . . . . . . . . . . . . . . . . . . . Crushed . | . . . . . . . . . . . . . . . . . . . . . . . . . . . . Highest Temperature 411 | . 85 9 195 303 178 24 36 255 6 3 208 237 155 411 . 179 353 100 . 315 382 94 168 354 235 141 . Average Temperature 69 | . 30 6 74 84 43 9 15 83 2 3 72 80 37 82 . 71 92 41 . 84 88 52 70 85 77 42 . Received Heat Transfer 2985 | . 90 . 39 267 359 84 18 . 9 12 121 67 9 447 . 18 69 9 4 16 253 . . 87 224 693 90 Effects 11 | . . . . 1 . . . . . . 3 . . 1 . . 4 . . 1 1 . . . . . . Shutdowns 1 | . . . . . . . . . . . . . . . . . 1 . . . . . . . . . . Energy Bleed 4 | . . . . . . . . . . . . . . 1 . . 1 . . 1 1 . . . . . . Interference 5 | . . . . . . . . . . . 3 . . . . . 2 . . . . . . . . . . Matter Decay 1 | . . . . 1 . . . . . . . . . . . . . . . . . . . . . . . Siege Activations 54 | . . . . . . . . . . . . . 1 6 1 . . . 3 2 9 . 2 7 15 8 . Total Turns 672 | . . . . . . . . . . . . . 11 155 8 . . . 15 28 125 . 21 63 140 106 . Longest Duration 61 | . . . . . . . . . . . . . 11 61 8 . . . 8 24 29 . 13 16 20 32 . Robots Corrupted 108 | . . . . . . . 2 . . . 4 2 . 4 1 4 5 . . . 12 . 8 15 24 27 . Combat Hostiles 97 | . . . . . . . 1 . . . . 2 . 4 1 3 5 . . . 11 . 6 13 24 27 . Parts Fried 207 | . . . . 1 1 2 1 . . . 15 3 . 7 3 4 6 . . . 20 . 18 33 44 49 . Impact Corruptions 12 | . . . . . 2 . 2 . . . 8 . . . . . . . . . . . . . . . . Robots Melted 17 | . . . 1 . . . . 2 1 . 2 2 . . . . . 1 . . . . . 1 7 . . Combat Hostiles 17 | . . . 1 . . . . 2 1 . 2 2 . . . . . 1 . . . . . 1 7 . . Parts Melted 45 | . . . 7 2 1 . 1 5 2 . . 2 . . . . . 1 . . . . . 5 15 3 1 Heat Transferred 9392 | . . . 777 555 341 692 606 . . . . . . . . . . 575 . 600 250 . . 962 2566 1468 . Parts Sabotaged . | . . . . . . . . . . . . . . . . . . . . . . . . . . . . Parts Stolen . | . . . . . . . . . . . . . . . . . . . . . . . . . . . . Parts Stripped 12 | . . . . . . . . . . . . . . . . . . . . . . . . . . . 12 Power Chain Reactions 15 | . . . . . . 2 . . . . . . . . . . . 1 . 2 5 . . . 1 4 . Alert | -11 -10 -10 -10 -8 -7 -7 -7 -7 -6 -6 -6 -6 -6 -6 -5 -5 -5 -5 -4 -4 -4 -4 -3 -3 -2 -2 -1 ------- Run | Yrd Mat Min Sub Mat Fac Low Low Dat Pro Fac Ext Cet Arc Hub Fac Upp Upp War Pro Fac Arm Lab Res Qua Res Tes Acc Peak Influence 1524 | 30 284 261 . 278 412 . . . . 66 590 571 398 857 488 . . . . 571 1074 . 110 499 1059 1524 1151 Initial 860 | . 19 88 . . 88 . . . . 12 32 330 148 69 413 . . . . 69 249 . . 29 243 589 860 Average 321 | 17 170 113 . 100 230 . . . . 43 233 410 268 475 370 . . . . 263 755 . 38 137 406 844 966 Maximum Alert Level 4 | . 1 1 . 1 2 . . . . . 2 2 1 3 2 . . . . 2 3 . . 2 3 4 4 Low Security (%) 42 | 100 54 68 . 81 39 . . . . 100 47 . 52 11 9 . . . . 43 . . 100 84 23 . . Level 1 31 | . 45 31 . 18 52 . . . . . 47 37 47 29 23 . . . . 40 8 . . 8 43 15 . Level 2 13 | . . . . . 8 . . . . . 4 62 . 34 67 . . . . 15 35 . . 6 9 35 . Level 3 10 | . . . . . . . . . . . . . . 24 . . . . . . 56 . . . 23 19 85 Level 4 1 | . . . . . . . . . . . . . . . . . . . . . . . . . . 29 14 Level 5 . | . . . . . . . . . . . . . . . . . . . . . . . . . . . . High Security . | . . . . . . . . . . . . . . . . . . . . . . . . . . . . Max Security . | . . . . . . . . . . . . . . . . . . . . . . . . . . . . Squads Dispatched 70 | . 4 . . 5 7 . . . . . 1 . . 6 1 . . . . 2 5 . 7 2 10 16 4 Investigation 8 | . 2 . . 1 2 . . . . . . . . . 1 . . . . . . . 1 1 . . . Extermination 11 | . . . . . 3 . . . . . . . . 1 . . . . . 1 2 . . 1 . 3 . Reinforcement 31 | . 2 . . 3 2 . . . . . 1 . . 4 . . . . . 1 2 . 5 . . 7 4 Assault 6 | . . . . 1 . . . . . . . . . 1 . . . . . . 1 . . . . 3 . Garrison . | . . . . . . . . . . . . . . . . . . . . . . . . . . . . Intercept 14 | . . . . . . . . . . . . . . . . . . . . . . . 1 . 10 3 . Searches Triggered . | . . . . . . . . . . . . . . . . . . . . . . . . . . . . Construction Impeded 5 | . . . . 1 1 . . . . . 1 . . . . . . . . 1 . . . . . 1 . Haulers Reinforced 5 | . . . . . . . . . . . . . . 2 . . . . . . . . 2 . . 1 . Active Scanning Responses . | . . . . . . . . . . . . . . . . . . . . . . . . . . . . Cargo Convoy Interrupts . | . . . . . . . . . . . . . . . . . . . . . . . . . . . . Stealth | -11 -10 -10 -10 -8 -7 -7 -7 -7 -6 -6 -6 -6 -6 -6 -5 -5 -5 -5 -4 -4 -4 -4 -3 -3 -2 -2 -1 --------- Run | Yrd Mat Min Sub Mat Fac Low Low Dat Pro Fac Ext Cet Arc Hub Fac Upp Upp War Pro Fac Arm Lab Res Qua Res Tes Acc Distress Signals 30 | . 2 1 . 1 . . . . . . . 2 1 1 . . . . . 2 1 . 8 . 9 1 1 Communications Jammed 103 | . . . . . . . . . . . . . . 18 . . . . . 49 15 . 3 10 . 8 . Distress Signals 103 | . . . . . . . . . . . . . . 18 . . . . . 49 15 . 3 10 . 8 . Times Spotted 552 | . 27 5 11 17 32 22 4 4 8 1 21 11 19 33 2 5 10 36 12 31 43 . 11 27 67 71 22 Peak Tracking Total 15 | . 5 3 2 3 4 9 4 2 4 1 4 5 2 7 1 1 3 15 5 9 5 . 3 9 8 10 14 Tactical Retreats 38 | . 3 . . . 3 6 . . 1 . 2 . . 4 . 1 2 . . 3 1 . . 2 3 3 4 Traps | -11 -10 -10 -10 -8 -7 -7 -7 -7 -6 -6 -6 -6 -6 -6 -5 -5 -5 -5 -4 -4 -4 -4 -3 -3 -2 -2 -1 ------- Run | Yrd Mat Min Sub Mat Fac Low Low Dat Pro Fac Ext Cet Arc Hub Fac Upp Upp War Pro Fac Arm Lab Res Qua Res Tes Acc Traps Triggered 6 | . 2 . . . . . . . . . 2 . . . . . . . . . 1 . . 1 . . . Indirectly . | . . . . . . . . . . . . . . . . . . . . . . . . . . . . Trap Hack Attempts . | . . . . . . . . . . . . . . . . . . . . . . . . . . . . Triggered . | . . . . . . . . . . . . . . . . . . . . . . . . . . . . Disarmed . | . . . . . . . . . . . . . . . . . . . . . . . . . . . . Reprogrammed 12 | . 6 . . . . . . . . . . . . . . . . . . . . . . 6 . . . Reused 5 | . 5 . . . . . . . . . . . . . . . . . . . . . . . . . . Traps Extracted . | . . . . . . . . . . . . . . . . . . . . . . . . . . . . Installed . | . . . . . . . . . . . . . . . . . . . . . . . . . . . . Triggered 18 | . 5 . . . . . . . 1 . . . . . . 1 . 11 . . . . . . . . . Machines | -11 -10 -10 -10 -8 -7 -7 -7 -7 -6 -6 -6 -6 -6 -6 -5 -5 -5 -5 -4 -4 -4 -4 -3 -3 -2 -2 -1 ---------- Run | Yrd Mat Min Sub Mat Fac Low Low Dat Pro Fac Ext Cet Arc Hub Fac Upp Upp War Pro Fac Arm Lab Res Qua Res Tes Acc Machines Disabled 57 | . . . 1 1 6 . . . . . 4 . . 10 1 . 2 . . 4 7 1 1 11 1 7 . Max in Single Turn 4 | . . . 1 1 4 . . . . . 1 . . 1 1 . 1 . . 2 2 1 1 1 1 1 . Garrison Access 8 | . . . . 1 . . . . . . . . . . 1 . . . . . . . . 1 4 . 1 Network Hub 4 | . . . . . . . . . . . . . . 4 . . . . . . . . . . . . . Machines Repaired . | . . . . . . . . . . . . . . . . . . . . . . . . . . . . Machines Dismantled 4 | . . . . . . . . . . . . . . 4 . . . . . . . . . . . . . Machines Sabotaged . | . . . . . . . . . . . . . . . . . . . . . . . . . . . . Overloaded Fab Kills . | . . . . . . . . . . . . . . . . . . . . . . . . . . . . Hacking | -11 -10 -10 -10 -8 -7 -7 -7 -7 -6 -6 -6 -6 -6 -6 -5 -5 -5 -5 -4 -4 -4 -4 -3 -3 -2 -2 -1 --------- Run | Yrd Mat Min Sub Mat Fac Low Low Dat Pro Fac Ext Cet Arc Hub Fac Upp Upp War Pro Fac Arm Lab Res Qua Res Tes Acc Machines Accessed 90 | . 9 1 2 10 8 . . 4 . 1 10 . . 2 6 1 2 3 . 4 3 1 4 8 3 5 3 Terminals 53 | . 6 . . 7 5 . . . . 1 10 . . 2 3 . 1 . . 2 1 . 2 6 1 4 2 Fabricators 3 | . . . . . . . . . . . . . . . 1 . . . . 1 . . 1 . . . . Repair Stations 7 | . 1 . . 1 3 . . . . . . . . . . . . . . . 1 . . . . 1 . Recycling Units 6 | . 2 . . 1 . . . . . . . . . . 1 . . . . 1 1 . . . . . . Scanalyzers 2 | . . . . . . . . . . . . . . . . . . . . . . . 1 1 . . . Garrison Access 6 | . . . . 1 . . . . . . . . . . 1 . . . . . . . . 1 2 . 1 Total Hacks 344 | . 32 1 5 29 30 . . 33 . 1 17 . . 3 32 1 9 10 . 15 12 20 29 36 4 18 7 Successful 202 | . 19 1 5 16 8 . . 33 . . 9 . . 2 18 1 9 10 . 4 4 20 18 16 2 4 3 Failed 142 | . 13 . . 13 22 . . . . 1 8 . . 1 14 . . . . 11 8 . 11 20 2 14 4 Catastrophic 28 | . 2 . . 2 4 . . . . 1 4 . . 1 1 . . . . 1 4 . . 3 1 1 3 Database Lockouts . | . . . . . . . . . . . . . . . . . . . . . . . . . . . . Manual 111 | . 19 . . 24 10 . . . . 1 3 1 . 1 14 . . 1 . 10 3 . 14 5 1 4 . Terminals 175 | . 23 . . 23 15 . . . . 1 17 . . 3 17 . 8 . . 9 5 . 13 22 1 12 6 Fabricators 17 | . . . . . . . . . . . . . . . 8 . . . . 3 . . 6 . . . . Repair Stations 33 | . 6 . . 2 15 . . . . . . . . . . . . . . . 4 . . . . 6 . Recycling Units 17 | . 3 . . 2 . . . . . . . . . . 6 . . . . 3 3 . . . . . . Scanalyzers 23 | . . . . . . . . . . . . . . . . . . . . . . . 10 13 . . . Garrison Access 8 | . . . . 2 . . . . . . . . . . 1 . . . . . . . . 1 3 . 1 Terminal Hacks 124 | . 6 1 5 2 2 . . 33 . . 7 . . 2 8 1 9 10 . 1 1 20 3 8 . 3 2 Record 43 | . . . 4 . . . . 11 . . . . . . . . 8 . . . . 20 . . . . . Part Schematic 14 | . . . . . . . . 13 . . 1 . . . . . . . . . . . . . . . . Robot Schematic 6 | . . . . . . . . 6 . . . . . . . . . . . . . . . . . . . Robot Analysis 1 | . . . . 1 . . . . . . . . . . . . . . . . . . . . . . . Prototype ID Bank 15 | . 1 . . . . . . 3 . . . . . . 2 . . 9 . . . . . . . . . Open Door 9 | . . 1 . . . . . . . . 4 . . . . 1 1 1 . . . . . 1 . . . Level Access Points 1 | . . . . . . . . . . . . . . 1 . . . . . . . . . . . . . Branch Access Points 4 | . . . . 1 1 . . . . . . . . . 1 . . . . . . . 1 . . . . Emergency Access Points 1 | . . . . . . . . . . . . . . . . . . . . . 1 . . . . . . Alert Level 2 | . . . . . . . . . . . . . . . . . . . . . . . 1 . . 1 . Unreport Threat 9 | . . . . . 1 . . . . . . . . . 2 . . . . . . . 1 3 . 2 . Locate Traps 6 | . 3 . . . . . . . . . . . . 1 . . . . . . . . . 1 . . 1 Reprogram Traps 2 | . 1 . . . . . . . . . . . . . . . . . . . . . . 1 . . . Patrol Status 1 | . . . . . . . . . . . . . . . . . . . . . . . . 1 . . . Hauler Manifests 2 | . 1 . . . . . . . . . . . . . 1 . . . . . . . . . . . . Registered Components 1 | . . . . . . . . . . . . . . . 1 . . . . . . . . . . . . Zone Layout 6 | . . . . . . . . . . . 2 . . . 1 . . . . 1 . . . 1 . . 1 Derelict Proto ID Bank 1 | . . . 1 . . . . . . . . . . . . . . . . . . . . . . . . Fabricator Hacks 6 | . . . . . . . . . . . . . . . 3 . . . . 1 . . 2 . . . . Network Status 2 | . . . . . . . . . . . . . . . 1 . . . . 1 . . . . . . . Load Schematic 2 | . . . . . . . . . . . . . . . 1 . . . . . . . 1 . . . . Build 2 | . . . . . . . . . . . . . . . 1 . . . . . . . 1 . . . . Repair Station Hacks 14 | . 4 . . 1 6 . . . . . . . . . . . . . . . 2 . . . . 1 . Scan Component 9 | . 2 . . 1 4 . . . . . . . . . . . . . . . 1 . . . . 1 . Repair 5 | . 2 . . . 2 . . . . . . . . . . . . . . . 1 . . . . . . Recycling Unit Hacks 2 | . . . . 1 . . . . . . . . . . 1 . . . . . . . . . . . . Retrieve Components 2 | . . . . 1 . . . . . . . . . . 1 . . . . . . . . . . . . Scanalyzer 15 | . . . . . . . . . . . . . . . . . . . . . . . 9 6 . . . Insert Component 10 | . . . . . . . . . . . . . . . . . . . . . . . 5 5 . . . Analyze 5 | . . . . . . . . . . . . . . . . . . . . . . . 4 1 . . . Garrison Access Hacks 6 | . . . . 1 . . . . . . . . . . 1 . . . . . . . . 1 2 . 1 Unlock Access 1 | . . . . 1 . . . . . . . . . . . . . . . . . . . . . . . Seal Access 5 | . . . . . . . . . . . . . . . 1 . . . . . . . . 1 2 . 1 Unauthorized Hacks 35 | . 9 . . 11 . . . . . . 2 . . . 5 . . . . 2 1 . 4 1 . . . Terminals 25 | . 8 . . 10 . . . . . . 2 . . . . . . . . 1 . . 3 1 . . . Track 2 | . . . . 1 . . . . . . . . . . . . . . . . . . . 1 . . . Botnet 4 | . 1 . . 2 . . . . . . . . . . . . . . . . . . 1 . . . . Disrupt 3 | . 1 . . 1 . . . . . . . . . . . . . . . 1 . . . . . . . Operators 3 | . 1 . . 1 . . . . . . . . . . . . . . . . . . 1 . . . . Skim 13 | . 5 . . 5 . . . . . . 2 . . . . . . . . . . . 1 . . . . Fabricators 3 | . . . . . . . . . . . . . . . 1 . . . . 1 . . 1 . . . . Prioritize 3 | . . . . . . . . . . . . . . . 1 . . . . 1 . . 1 . . . . Repair Stations . | . . . . . . . . . . . . . . . . . . . . . . . . . . . . Recycling Units 7 | . 1 . . 1 . . . . . . . . . . 4 . . . . . 1 . . . . . . Monitor 1 | . . . . . . . . . . . . . . . 1 . . . . . . . . . . . . Reject 1 | . . . . . . . . . . . . . . . 1 . . . . . . . . . . . . Recyclers 1 | . . . . . . . . . . . . . . . 1 . . . . . . . . . . . . Mask 2 | . . . . . . . . . . . . . . . 1 . . . . . 1 . . . . . . Tunnel 2 | . 1 . . 1 . . . . . . . . . . . . . . . . . . . . . . . Scanalyzers . | . . . . . . . . . . . . . . . . . . . . . . . . . . . . Garrison Access . | . . . . . . . . . . . . . . . . . . . . . . . . . . . . Data Cores Recovered 3 | . 1 . . 2 . . . . . . . . . . . . . . . . . . . . . . . Used 2 | . 1 . . 1 . . . . . . . . . . . . . . . . . . . . . . . Hacking Detections 63 | . 8 . . 7 8 . . . . 1 7 . . 2 5 . 1 . . 3 3 . 3 6 2 5 2 Full Trace Events 6 | . 1 . . . 2 . . . . . . . . . 1 . . . . . . . 1 1 . . . Feedback Events . | . . . . . . . . . . . . . . . . . . . . . . . . . . . . Feedback Blocked . | . . . . . . . . . . . . . . . . . . . . . . . . . . . . Robot Schematics Acquired 6 | . . . . . . . . 6 . . . . . . . . . . . . . . . . . . . Robots Built . | . . . . . . . . . . . . . . . . . . . . . . . . . . . . Authchips . | . . . . . . . . . . . . . . . . . . . . . . . . . . . . Time . | . . . . . . . . . . . . . . . . . . . . . . . . . . . . Total Robot Build Rating . | . . . . . . . . . . . . . . . . . . . . . . . . . . . . Part Schematics Acquired 19 | . . . . . . . . 13 . . 1 . . . . . . . . . . . 3 . . 2 . Parts Built 4 | . . . . . . . . . . . . . . . 2 . . . . . . . 2 . . . . Authchips . | . . . . . . . . . . . . . . . . . . . . . . . . . . . . Time 48 | . . . . . . . . . . . . . . . 29 . . . . . . . 19 . . . . Total Part Build Rating 28 | . . . . . . . . . . . . . . . 14 . . . . . . . 14 . . . . Parts Repaired 5 | . 2 . . . 2 . . . . . . . . . . . . . . . 1 . . . . . . Time 238 | . 52 . . . 132 . . . . . . . . . . . . . . . 54 . . . . . . Parts Recycled . | . . . . . . . . . . . . . . . . . . . . . . . . . . . . Recycled Matter . | . . . . . . . . . . . . . . . . . . . . . . . . . . . . Retrieved Matter . | . . . . . . . . . . . . . . . . . . . . . . . . . . . . Retrieved Components 2 | . . . . . . . . . . . . . . . 2 . . . . . . . . . . . . Parts Scanalyzed 4 | . . . . . . . . . . . . . . . . . . . . . . . 3 1 . . . Part Schematics Acquired 3 | . . . . . . . . . . . . . . . . . . . . . . . 3 . . . . Parts Damaged . | . . . . . . . . . . . . . . . . . . . . . . . . . . . . Bothacking | -11 -10 -10 -10 -8 -7 -7 -7 -7 -6 -6 -6 -6 -6 -6 -5 -5 -5 -5 -4 -4 -4 -4 -3 -3 -2 -2 -1 ------------ Run | Yrd Mat Min Sub Mat Fac Low Low Dat Pro Fac Ext Cet Arc Hub Fac Upp Upp War Pro Fac Arm Lab Res Qua Res Tes Acc Used RIF Installer . | . . . . . . . . . . . . . . . . . . . . . . . . . . . . Robots Hacked . | . . . . . . . . . . . . . . . . . . . . . . . . . . . . Non-combat . | . . . . . . . . . . . . . . . . . . . . . . . . . . . . Combat . | . . . . . . . . . . . . . . . . . . . . . . . . . . . . Robot Hacks Applied . | . . . . . . . . . . . . . . . . . . . . . . . . . . . . Relay Couplers Released 3 | . . . . 2 . . . . . . . . . . . . . . . . . . . . 1 . . Machine Destruction 3 | . . . . 2 . . . . . . . . . . . . . . . . . . . . 1 . . Fabnet Peak Effective % . | . . . . . . . . . . . . . . . . . . . . . . . . . . . . Robots Rewired 16 | . . . . . . . . . . . 11 . . . . . . 5 . . . . . . . . . Allies Hacked . | . . . . . . . . . . . . . . . . . . . . . . . . . . . . Hacks Repelled . | . . . . . . . . . . . . . . . . . . . . . . . . . . . . Allies | -11 -10 -10 -10 -8 -7 -7 -7 -7 -6 -6 -6 -6 -6 -6 -5 -5 -5 -5 -4 -4 -4 -4 -3 -3 -2 -2 -1 -------- Run | Yrd Mat Min Sub Mat Fac Low Low Dat Pro Fac Ext Cet Arc Hub Fac Upp Upp War Pro Fac Arm Lab Res Qua Res Tes Acc Total Allies 37 | . . 5 . . . . . . . . 22 5 . . . . . 5 . . . . . . . . . Largest Group 16 | . . 5 5 1 . . . . . . 16 9 9 8 . . . 5 1 . . . . . . . . Highest-Rated Group 716 | . . 78 78 31 . . . . . . 563 716 716 552 . . . 223 49 . . . . . . . . Highest-Rated Ally 159 | . . 31 31 31 . . . . . . 159 159 159 96 . . . 49 49 . . . . . . . . Total Orders 19 | . . 2 . . . 3 . . . . . . 2 2 3 4 3 . . . . . . . . . . STAY 5 | . . . . . . . . . . . . . 1 . 1 2 1 . . . . . . . . . . FOLLOW 4 | . . . . . . . . . . . . . 1 1 1 1 . . . . . . . . . . . RETURN 10 | . . 2 . . . 3 . . . . . . . 1 1 1 2 . . . . . . . . . . Ally Attacks 332 | . . . 52 17 . . . . . . 98 50 26 53 . . . 35 1 . . . . . . . . Total Damage 8635 | . . . 719 169 . . . . . . 2151 1239 978 2008 . . . 1318 53 . . . . . . . . Kills 48 | . . . 6 1 . . . . . . 13 5 4 11 . . . 8 . . . . . . . . . Allies Corrupted 6 | . . . . . . . . . . . 6 . . . . . . . . . . . . . . . . Allies Melted 2 | . . . . . . . . . . . . . . . . . . 1 . . . . . . 1 . . Intel | -11 -10 -10 -10 -8 -7 -7 -7 -7 -6 -6 -6 -6 -6 -6 -5 -5 -5 -5 -4 -4 -4 -4 -3 -3 -2 -2 -1 ------- Run | Yrd Mat Min Sub Mat Fac Low Low Dat Pro Fac Ext Cet Arc Hub Fac Upp Upp War Pro Fac Arm Lab Res Qua Res Tes Acc Robot Analysis Total 146 | . . . . 1 . . . 145 . . . . . . . . . . . . . . . . . . . Derelict Logs Recovered 8 | . . 1 1 . . 1 1 . 1 . . . . . . 2 1 . . . . . . . . . . Drone Launches 34 | . . 3 . 1 . 5 . 1 1 . 1 . 1 8 3 3 7 . . . . . . . . . . Drone Recoveries 27 | . . 2 . 1 . 5 . . 1 . . 1 . 7 1 3 6 . . . . . . . . . . Exploration | -11 -10 -10 -10 -8 -7 -7 -7 -7 -6 -6 -6 -6 -6 -6 -5 -5 -5 -5 -4 -4 -4 -4 -3 -3 -2 -2 -1 ------------- Run | Yrd Mat Min Sub Mat Fac Low Low Dat Pro Fac Ext Cet Arc Hub Fac Upp Upp War Pro Fac Arm Lab Res Qua Res Tes Acc Turns Passed 30030 | 116 1561 1078 4657 1232 1984 764 731 417 731 271 1160 486 764 993 370 1107 1195 1218 453 833 1097 525 751 1247 2994 1084 211 Spaces Moved 15716 | 29 747 533 1801 704 1289 539 534 225 545 190 719 174 356 338 204 650 636 680 253 388 464 225 396 599 1574 416 508 Core 1 | . . . . . . . . . . . . . . . . . . . . . . . . . . 1 . Treads 10276 | 1 747 533 1801 32 . . . . . . . 46 356 338 204 650 636 680 253 388 464 225 396 599 1574 353 . Legs 4238 | 28 . . . 14 1289 539 534 225 545 190 719 128 . . . . . . . . . . . . . 27 . Wheels 680 | . . . . 658 . . . . . . . . . . . . . . . . . . . . . 22 . Hover 5 | . . . . . . . . . . . . . . . . . . . . . . . . . . . 5 Flight 516 | . . . . . . . . . . . . . . . . . . . . . . . . . . 13 503 Fastest Speed 21 | 120 160 160 240 120 123 123 123 123 123 122 122 122 160 160 160 160 160 160 160 160 160 160 160 166 153 37 21 Average Speed 156 | 121 160 193 240 138 123 123 123 123 123 122 122 178 160 166 160 160 160 160 160 160 160 160 160 166 160 172 26 Slowest Speed 2900 | 160 160 240 240 237 193 193 123 123 123 122 122 240 160 240 160 160 160 160 160 160 160 160 166 166 250 2900 60 Overloaded Moves 52 | . . . . . . . . . . . . . . . . . . . . . . . . . . . 52 Propulsion Burnouts . | . . . . . . . . . . . . . . . . . . . . . . . . . . . . Robots Hopped 3 | . . . . . . . . . . . . . . . . . . . . . . . . . . 1 2 Cave-ins Triggered 2 | . . . . 1 . . . . . . . . . . . . . . . . . . . . . . 1 Teleports 2 | . . . . . . . . . . . . . . . . . . . . . . . . . 2 . . Exploration Rate (%) 57 | 3 99 99 88 41 38 72 58 80 74 5 81 64 97 45 6 89 72 89 40 14 41 96 17 85 58 46 19 Regions Visited 27 Branch Regions 18 Pre-discovered Areas 34 | . 2 . . 4 . . . 27 1 . . . . . . . . . . . . . . . . . . Known Exits Taken 16 | . . 1 1 1 1 1 . 1 1 1 . . 1 1 1 . 1 . 1 1 . . 1 . . 1 . Unknown Exits Taken 11 | 1 1 . . . . . 1 . . . 1 1 . . . 1 . 1 . . 1 1 . 1 1 . . Scrap Searched 20 | . . 1 11 . . 1 . . 3 . . . . . . 2 2 . . . . . . . . . . Spaces Dug 219 | . . 14 21 4 . 17 5 . . 8 7 . . 9 . 2 4 3 . 12 25 . 10 15 26 26 11 Terrain Destroyed 545 | . . 28 28 14 21 17 5 . 6 11 17 1 3 69 . 2 11 14 24 78 72 . 13 25 35 40 11 Melee 101 | . . . 19 4 . . 5 . . 7 5 . . 6 . 2 2 1 . 12 . . . . 13 14 11 Projectile 204 | . . . 9 10 . . . . 6 4 12 1 3 27 . . 8 5 5 11 40 . 13 25 22 3 . AOE 239 | . . 28 . . 21 17 . . . . . . . 36 . . . 8 19 55 32 . . . . 23 . Terrain Rammed . | . . . . . . . . . . . . . . . . . . . . . . . . . . . . Walls Destroyed . | . . . . . . . . . . . . . . . . . . . . . . . . . . . . Machines Disabled . | . . . . . . . . . . . . . . . . . . . . . . . . . . . . Actions | -11 -10 -10 -10 -8 -7 -7 -7 -7 -6 -6 -6 -6 -6 -6 -5 -5 -5 -5 -4 -4 -4 -4 -3 -3 -2 -2 -1 --------- Run | Yrd Mat Min Sub Mat Fac Low Low Dat Pro Fac Ext Cet Arc Hub Fac Upp Upp War Pro Fac Arm Lab Res Qua Res Tes Acc Total 19806 | 80 997 570 1965 892 1537 595 566 340 590 217 935 334 486 582 247 695 769 792 282 542 800 391 514 854 1992 697 545 Wait 1392 | 26 162 24 8 53 70 23 . 50 23 1 49 97 45 47 30 24 87 33 16 69 85 125 45 65 90 39 6 Move 15683 | 29 746 532 1800 703 1288 538 533 224 544 189 718 173 355 337 203 649 635 679 252 387 463 224 395 598 1573 413 503 Hop 3 | . . . . . . . . . . . . . . . . . . . . . . . . . . 1 2 Pick Up 214 | 2 12 1 12 17 26 . 1 7 1 5 1 14 5 11 4 . . 7 . 7 15 12 8 15 19 11 1 Fast Attach 111 | 1 7 1 1 14 5 . . 5 . 1 1 6 9 3 . . 2 5 . 1 6 1 3 8 12 10 9 Attach 69 | . . . . 7 8 . . 2 . 3 . 3 . 4 3 . . . . 5 4 6 2 2 6 13 1 Detach 16 | . . . . 2 1 . . 2 . 1 . . . 1 1 . . . . . 1 1 . . 1 4 1 Swap 286 | 4 3 4 25 18 14 8 4 5 2 1 3 4 3 46 . 2 5 3 3 6 24 7 1 17 47 27 . Drop 266 | 2 8 2 12 26 24 . . 11 1 4 2 16 9 19 3 . 1 12 . 5 19 9 9 27 27 13 5 Fire 1405 | 13 58 6 41 30 95 25 18 34 19 5 49 21 60 93 3 18 37 13 11 42 183 6 51 122 203 148 1 Melee 197 | . . . 66 22 . . 5 . . 7 15 . . 9 . 2 2 1 . 20 . . . . 14 18 16 Ram . | . . . . . . . . . . . . . . . . . . . . . . . . . . . . Kick 10 | . . . . . 6 1 3 . . . . . . . . . . . . . . . . . . . . Crush 4 | 3 1 . . . . . . . . . . . . . . . . . . . . . . . . . . Escape Stasis 4 | . . . . . . . . . . . 4 . . . . . . . . . . . . . . . . Rewire 134 | . . . . . . . 2 . . . 93 . . . . . . 39 . . . . . . . . . Trap . | . . . . . . . . . . . . . . . . . . . . . . . . . . . . Miscellaneous 12 | . . . . . . . . . . . . . . 12 . . . . . . . . . . . . . Route ------- -11/Scrapyard -10/Materials (discovered 4 exits: *Mat x2 / *Min / *Sub) -10/Mines (discovered 4 exits: *Mat x2 / *Exi / *Sub) -10/Subcaves (discovered 3 exits: *Mat x2 / Rec) -8/Materials -7/Factory (discovered 5 exits: *Fac x2 / Sto / *Low x2) -7/Lower Caves -7/Lower Caves (discovered 2 exits: *Fac / *Dat) -7/Data Miner -6/Proximity Caves -6/Factory (discovered 3 exits: [*Low] / *Ext x2) -6/Extension (discovered 2 exits: *Fac / *Cet) -6/Cetus (discovered 2 exits: *Fac / [*Arc]) -6/Archives (discovered 3 exits: *Fac / *Hub x2) -6/Hub_04(d) (discovered 4 exits: *Fac x4) -5/Factory (discovered 2 exits: *Upp x2) -5/Upper Caves -5/Upper Caves (discovered 2 exits: *Fac / *War) -5/Warlord -4/Proximity Caves -4/Factory (discovered 2 exits: *Res / *Arm) -4/Armory -4/Lab -3/Research (discovered 2 exits: *Qua x2) -3/Quarantine -2/Research (discovered 3 exits: *Acc x2 / *Tes) -2/Testing -1/Access To Epsilon Eridani History --------- Turn | Location | Event 1 | -11/Scrapyard | Discovered new exit (range 1) 117 | -11/Scrapyard | Entered Materials 233 | -10/Materials | Discovered new exit (range 12) 300 | -10/Materials | Build established: Mutant 399 | -10/Materials | Discovered new exit (range 4) 623 | -10/Materials | Repaired Lgt. Treads 1414 | -10/Materials | Learned Storage trap positions 1438 | -10/Materials | Learned Recycling recycling unit intel 1453 | -10/Materials | Repaired Lgt. Treads 1453 | -10/Materials | Learned location of 1 exit from Storage 1458 | -10/Materials | Learned location of 2 exits from Mines 1459 | -10/Materials | Learned location of 1 exit from Storage 1463 | -10/Materials | Learned 4 Subcaves zone layouts 1495 | -10/Materials | Discovered new exit (range 10) 1542 | -10/Materials | Loaded intel: 1 repair station location 1566 | -10/Materials | Discovered new exit (range 6) 1678 | -10/Materials | Entered Mines 1679 | -10/Mines | Identified exit to Subcaves 1679 | -10/Mines | Identified exit to Exiles 1706 | -10/Mines | Discovered new exit (range 16) 1829 | -10/Mines | Received a Rocket Launcher from a helpful Derelict 1966 | -10/Mines | Identified exit to Materials 2089 | -10/Mines | Deemed a non-threat by the Exiles lab entrance 2188 | -10/Mines | Found the Drone Emporium 2197 | -10/Mines | Found Prototype Device 2197 | -10/Mines | Identified Sensor Drone Bay 2268 | -10/Mines | Assisted by bots powering up and referring to "LRC-V3" 2756 | -10/Mines | Entered Subcaves 2756 | -10/Subcaves | Accompanied by 6 allies 2761 | -10/Subcaves | Led the pair of lost Derelicts to an unsafe place 2838 | -10/Subcaves | Shifting Twisted Machinery released Barrage Gun 2853 | -10/Subcaves | Shifting Twisted Machinery released Piercing Trap 3571 | -10/Subcaves | Discovered new exit (range 14) 3589 | -10/Subcaves | Shifting Twisted Machinery released Flamer 3594 | -10/Subcaves | Shifting Twisted Machinery released Battle Cannon 3597 | -10/Subcaves | Visited Clippyterm 3605 | -10/Subcaves | Identified exit to Recycling 3627 | -10/Subcaves | Identified exit to Materials 4040 | -10/Subcaves | Visited 4L-MR0's lab 4069 | -10/Subcaves | Found Cargo Legs 4583 | -10/Subcaves | Discovered exit to Materials (range 9) 4950 | -10/Subcaves | Shifting Twisted Machinery released Battle Rifle 4961 | -10/Subcaves | Shifting Twisted Machinery released Shrapnel Trap 5236 | -10/Subcaves | Disturbed a concealed Subdweller 5782 | -10/Subcaves | Found Powered Cannon 5960 | -10/Subcaves | A swath of the cavern ceiling suddenly collapsed 6319 | -10/Subcaves | A swath of the cavern ceiling suddenly collapsed 7413 | -10/Subcaves | Entered Materials 7413 | -8/Materials | Accompanied by 2 allies 7413 | -8/Materials | Evolved 4 slots: Propulsion x2, Utility x2 7831 | -8/Materials | Build established: Subdweller-Mutant 8182 | -8/Materials | Build established: Mutant 8276 | -8/Materials | Learned location of Lower Caves (-7) 8316 | -8/Materials | Identified exit to Garrison 8394 | -8/Materials | Learned Factory stockpile data 8437 | -8/Materials | Learned location of Zion (-6) 8469 | -8/Materials | Learned Factory trap positions 8484 | -8/Materials | Discovered new exit (range 3) 8499 | -8/Materials | Crushed by falling debris 8510 | -8/Materials | Learned Factory trap positions 8532 | -8/Materials | Identified exit to Factory 8544 | -8/Materials | Lost 5 parts (1p3n1u) 8561 | -8/Materials | Learned Factory security intel 8623 | -8/Materials | Attached Cargo Legs, gained temporary slots: Utility x2 8645 | -8/Materials | Entered Factory 8645 | -7/Factory | Evolved 2 slots: Power x1, Utility x1 8646 | -7/Factory | Identified exit to Storage 8647 | -7/Factory | Loaded intel: 118 trap records 9589 | -7/Factory | Repaired Hrd. Heavy Armor Plating? 9774 | -7/Factory | Discovered new exit (range 12) 9998 | -7/Factory | Identified exit to Lower Caves 10199 | -7/Factory | Discovered new exit (range 8) 10406 | -7/Factory | Repaired Broken Cld. Deuterium Engine 10629 | -7/Factory | Entered Lower Caves 11035 | -7/Lower Caves | Encountered a Warlord checkpoint 11258 | -7/Lower Caves | Attracted the attention of an 0b10 outpost 11347 | -7/Lower Caves | Identified exit to Lower Caves 11393 | -7/Lower Caves | Entered another Lower Caves area 11448 | -7/Lower Caves | Discovered new exit (range 10) 11611 | -7/Lower Caves | Encountered a Warlord checkpoint 11880 | -7/Lower Caves | Learned Factory garrison access intel 11946 | -7/Lower Caves | Discovered new exit (range 8) 12124 | -7/Lower Caves | Entered Data Miner 12124 | -7/Data Miner | Discovered new exit (range 6) 12148 | -7/Data Miner | Met Data Miner 12179 | -7/Data Miner | Learned location of Section 7 (-2) 12179 | -7/Data Miner | Acquired the access code to Warlord's prototype stash 12192 | -7/Data Miner | Received God Mode back door access code from Data Miner 12197 | -7/Data Miner | Attached Powered Cannon, gained temporary slot: Power 12206 | -7/Data Miner | Interfaced with the Data Conduit 12358 | -7/Data Miner | Found Exp. Thermal Shield 12540 | -7/Data Miner | Identified exit to Proximity Caves 12541 | -7/Data Miner | Entered Proximity Caves 12541 | -6/Proximity Caves | Accompanied by 1 ally 12616 | -6/Proximity Caves | Build established: Scavenger-Mutant 13101 | -6/Proximity Caves | Attracted the attention of an 0b10 checkpoint 13229 | -6/Proximity Caves | Discovered new exit (range 11) 13251 | -6/Proximity Caves | Identified exit to Factory 13272 | -6/Proximity Caves | Entered Factory 13272 | -6/Factory | Accompanied by 1 ally 13272 | -6/Factory | Evolved 2 slots: Propulsion x1, Weapon x1 13273 | -6/Factory | Loaded intel: 112 trap records 13274 | -6/Factory | Loaded intel: 264 machine locations 13275 | -6/Factory | Loaded intel: 4 garrison access locations 13351 | -6/Factory | Discovered new exit (range 5) 13477 | -6/Factory | Discovered new exit (range 10) 13516 | -6/Factory | Discovered new exit (range 16) 13536 | -6/Factory | Identified exit to Extension 13543 | -6/Factory | Entered Extension 13543 | -6/Extension | Accompanied by 1 ally 13544 | -6/Extension | Loaded intel: 34 machine locations 13670 | -6/Extension | Rescued A7 13842 | -6/Extension | Rescued a captive Derelict 13843 | -6/Extension | Rescued a captive Derelict 13931 | -6/Extension | Rescued a captive Derelict 13944 | -6/Extension | Rescued a captive Derelict 13946 | -6/Extension | Rescued a captive Derelict 14195 | -6/Extension | Spotted B-75 Beast 14205 | -6/Extension | Allies destroyed B-75 Beast 14215 | -6/Extension | Spotted B-75 Beast 14235 | -6/Extension | Allies destroyed B-75 Beast 14275 | -6/Extension | Rescued a captive Derelict 14456 | -6/Extension | Rescued a captive Derelict 14466 | -6/Extension | Rescued a captive Derelict 14495 | -6/Extension | Rescued a captive Derelict 14516 | -6/Extension | Rescued a captive Derelict 14617 | -6/Extension | Rescued a captive Derelict 14663 | -6/Extension | Discovered new exit (range 10) 14664 | -6/Extension | Discovered new exit (range 6) 14668 | -6/Extension | Lost 8 allies 14703 | -6/Extension | Entered Cetus 14703 | -6/Cetus | Accompanied by 10 allies (A7) 14704 | -6/Cetus | Loaded intel: 24 machine locations 14708 | -6/Cetus | Acquired a Cetus Manufacturing Module code from A7 14712 | -6/Cetus | Spotted Cetus Guard 14712 | -6/Cetus | Spotted Cetus Guard 14721 | -6/Cetus | Spotted Cetus Guard 14721 | -6/Cetus | Spotted Cetus Guard 14723 | -6/Cetus | Destroyed Cetus Guard 14738 | -6/Cetus | Destroyed Cetus Guard 14745 | -6/Cetus | Allies destroyed Cetus Guard 14745 | -6/Cetus | Destroyed Cetus Guard 14771 | -6/Cetus | Lost 5 allies 14857 | -6/Cetus | Started Cetus Manufacturing Module 14882 | -6/Cetus | Manufactured an Enhanced Grunt 14907 | -6/Cetus | Manufactured an Enhanced Grunt 14932 | -6/Cetus | Manufactured an Enhanced Grunt 14957 | -6/Cetus | Manufactured an Enhanced Grunt 14978 | -6/Cetus | Build established: Scavenger-Tank 14982 | -6/Cetus | Manufactured an Enhanced Grunt 14989 | -6/Cetus | Discovered new exit (range 15) 15023 | -6/Cetus | Spotted Cetus Guard 15023 | -6/Cetus | Spotted Cetus Guard 15026 | -6/Cetus | Spotted Cetus Guard 15027 | -6/Cetus | Spotted Cetus Guard 15030 | -6/Cetus | Allies destroyed Cetus Guard 15032 | -6/Cetus | Allies destroyed Cetus Guard 15034 | -6/Cetus | Destroyed Cetus Guard 15039 | -6/Cetus | Allies destroyed Cetus Guard 15049 | -6/Cetus | Discovered new exit (range 15) 15058 | -6/Cetus | Met Revision 17 15083 | -6/Cetus | System corruption reached 10% 15189 | -6/Cetus | Entered Archives 15189 | -6/Archives | Accompanied by 9 allies (A7) 15190 | -6/Archives | Loaded intel: 8 machine locations 15261 | -6/Archives | Discovered new exit (range 15) 15367 | -6/Archives | Build established: Scavenger-Mutant 15374 | -6/Archives | Discovered new exit (range 16) 15435 | -6/Archives | Discovered new exit (range 14) 15943 | -6/Archives | Identified exit to Hub_04(d) 15953 | -6/Archives | Entered Hub_04(d) 15953 | -6/Hub_04(d) | Accompanied by 9 allies 15954 | -6/Hub_04(d) | Loaded intel: 67 machine locations 16081 | -6/Hub_04(d) | Discovered new exit (range 12) 16109 | -6/Hub_04(d) | Lost 5 allies 16233 | -6/Hub_04(d) | Spotted B-75 Beast 16254 | -6/Hub_04(d) | Allies destroyed B-75 Beast 16314 | -6/Hub_04(d) | Identified exit to Factory 16404 | -6/Hub_04(d) | Network Hub disabled 16433 | -6/Hub_04(d) | Network Hub disabled 16462 | -6/Hub_04(d) | Spotted Lightning 16463 | -6/Hub_04(d) | Spotted Lightning 16465 | -6/Hub_04(d) | Spotted Lightning 16473 | -6/Hub_04(d) | Destroyed Lightning 16473 | -6/Hub_04(d) | Destroyed Lightning 16474 | -6/Hub_04(d) | Spotted Lightning 16479 | -6/Hub_04(d) | Spotted Lightning 16480 | -6/Hub_04(d) | Spotted Lightning 16498 | -6/Hub_04(d) | Found Exp. EM Disruption Field 16506 | -6/Hub_04(d) | Destroyed Lightning 16510 | -6/Hub_04(d) | Destroyed Lightning 16519 | -6/Hub_04(d) | Build established: Scavenger-Tank 16523 | -6/Hub_04(d) | Destroyed Lightning 16543 | -6/Hub_04(d) | Found Prototype Energy Cannon 16547 | -6/Hub_04(d) | Found Exp. Targeting Computer 16554 | -6/Hub_04(d) | Found Exp. EM Disruption Field 16563 | -6/Hub_04(d) | Found Exp. Targeting Computer 16565 | -6/Hub_04(d) | Identified EMDS 16569 | -6/Hub_04(d) | Found Exp. Phase Shifter 16622 | -6/Hub_04(d) | Found EMDS 16653 | -6/Hub_04(d) | First assault squad dispatched 16673 | -6/Hub_04(d) | Spotted Lightning 16675 | -6/Hub_04(d) | Spotted Lightning 16677 | -6/Hub_04(d) | Spotted Lightning 16697 | -6/Hub_04(d) | Destroyed Lightning 16699 | -6/Hub_04(d) | Destroyed Lightning 16735 | -6/Hub_04(d) | Destroyed Lightning 16756 | -6/Hub_04(d) | Destroyed 8 combat bots 16781 | -6/Hub_04(d) | Network Hub disabled 16805 | -6/Hub_04(d) | Spotted Lightning 16837 | -6/Hub_04(d) | Destroyed Lightning 16851 | -6/Hub_04(d) | Found Corrupted EMDS 16852 | -6/Hub_04(d) | System corruption reached 30% 16889 | -6/Hub_04(d) | Network Hub disabled 16946 | -6/Hub_04(d) | Entered Factory 16946 | -5/Factory | Evolved 2 slots: Propulsion x1, Utility x1 16947 | -5/Factory | Loaded intel: 251 machine locations 17104 | -5/Factory | Fabricated Quantum Capacitor (x2) 17194 | -5/Factory | Identified exit to Upper Caves 17316 | -5/Factory | Entered Upper Caves 17316 | -5/Upper Caves | Accompanied by 1 ally 17318 | -5/Upper Caves | Learned Factory emergency access door positions 17767 | -5/Upper Caves | Build established: Scavenger-Mutant 18399 | -5/Upper Caves | Discovered new exit (range 11) 18423 | -5/Upper Caves | Entered another Upper Caves area 18423 | -5/Upper Caves | Accompanied by 1 ally 18424 | -5/Upper Caves | Identified exit to Warlord 18505 | -5/Upper Caves | Discovered new exit (range 9) 18541 | -5/Upper Caves | Identified exit to Factory 19042 | -5/Upper Caves | Attracted the attention of an 0b10 base 19062 | -5/Upper Caves | Learned Factory garrison access intel 19062 | -5/Upper Caves | Learned Factory emergency access door positions 19062 | -5/Upper Caves | Learned Research trap positions 19062 | -5/Upper Caves | Learned 6 Proximity Caves zone layouts 19062 | -5/Upper Caves | Learned location of 2 exits from Lower Caves 19070 | -5/Upper Caves | Destroyed 7 combat bots 19139 | -5/Upper Caves | Spotted B-75 Beast 19186 | -5/Upper Caves | Build established: Scavenger-Tank 19618 | -5/Upper Caves | Entered Warlord 19618 | -5/Warlord | Accompanied by 1 ally 20317 | -5/Warlord | Visited the Vortex Lab 20329 | -5/Warlord | Found Prototype Energy Cannon 20329 | -5/Warlord | Identified Vortex Cannon 20330 | -5/Warlord | Warlord's base attacked by MAIN.C 20333 | -5/Warlord | Found Prototype Energy Gun 20333 | -5/Warlord | Identified Vortex Shotgun 20340 | -5/Warlord | Found Vortex Cannon 20346 | -5/Warlord | Found Vortex Shotgun 20507 | -5/Warlord | Met Warlord 20521 | -5/Warlord | Opened Warlord's prototype stash 20530 | -5/Warlord | Found Vortex Chain Reactor 20680 | -5/Warlord | Warlord forces counterattacked 20686 | -5/Warlord | Spotted Striker 20694 | -5/Warlord | Allies destroyed Striker 20719 | -5/Warlord | Spotted Executioner 20727 | -5/Warlord | Allies destroyed Executioner 20751 | -5/Warlord | Spotted Striker 20753 | -5/Warlord | Spotted Striker 20758 | -5/Warlord | Destroyed Striker 20815 | -5/Warlord | Discovered new exit (range 12) 20823 | -5/Warlord | Lost 15 allies 20836 | -5/Warlord | Entered Proximity Caves 20836 | -4/Proximity Caves | Accompanied by 1 ally 21213 | -4/Proximity Caves | Attracted the attention of an 0b10 checkpoint 21289 | -4/Proximity Caves | Entered Factory 21289 | -4/Factory | Evolved 2 slots: Utility x2 21290 | -4/Factory | Identified exit to Armory 21292 | -4/Factory | Loaded intel: 284 machine locations 21293 | -4/Factory | Loaded intel: 4 garrison access locations 21569 | -4/Factory | Discovered new exit (range 9) 21625 | -4/Factory | Build established: Scavenger-Mutant 22122 | -4/Factory | Entered Armory 22123 | -4/Armory | Loaded intel: 72 machine locations 22456 | -4/Armory | Build established: Scavenger-Tank 22622 | -4/Armory | First assault squad dispatched 22999 | -4/Armory | Discovered new exit (range 4) 23038 | -4/Armory | Repaired Centrium Medium Armor Plating 23219 | -4/Armory | Entered Lab 23221 | -4/Lab | Discovered new exit (range 9) 23239 | -4/Lab | Hidden lab's door opened automatically 23239 | -4/Lab | Sensor layout match revealed 23240 | -4/Lab | Gained access to the hidden lab's interior 23410 | -4/Lab | Found Alien Artifact 23422 | -4/Lab | Found Alien Artifact 23430 | -4/Lab | Found Alien Artifact 23431 | -4/Lab | Identified Integrated Dissipator 23431 | -4/Lab | Installed Integrated Dissipator, increased core heat dissipation (+20) 23439 | -4/Lab | Found Alien Artifact 23439 | -4/Lab | Identified Core Regenerator 23439 | -4/Lab | Used Core Regenerator, restored core integrity (+83) 23487 | -4/Lab | Found Prototype Hackware 23518 | -4/Lab | Found Prototype Protection 23547 | -4/Lab | Found Prototype Energy Cannon 23551 | -4/Lab | Found Prototype Energy Gun 23576 | -4/Lab | Decrypted terminal 23576 | -4/Lab | Acquired modification code for an L2 power cell 23720 | -4/Lab | Identified Med. Regenerative Plating 23721 | -4/Lab | Identified Warp Cannon 23724 | -4/Lab | Identified Hyp. EM Gauss Rifle 23740 | -4/Lab | Identified Deep Network Scanner 23744 | -4/Lab | Entered Research 23744 | -3/Research | Evolved 2 slots: Power x1, Utility x1 23745 | -3/Research | Loaded intel: 101 trap records 23746 | -3/Research | Loaded intel: 104 machine locations 23916 | -3/Research | Identified Core Reset Matrix 23916 | -3/Research | Identified Transdimensional Reconstructor 23925 | -3/Research | Identified exit to Quarantine 23944 | -3/Research | Revision forces began assault on 0b10 24024 | -3/Research | Build established: Hacker-Gunner 24029 | -3/Research | Met up with Revision 17++ 24124 | -3/Research | Spotted B-86 Titan 24209 | -3/Research | Fabricated Quantum Capacitor (x2) 24237 | -3/Research | Lost 3 allies 24305 | -3/Research | Intercept squad dispatched 24444 | -3/Research | Research terminal network offline 24495 | -3/Research | Entered Quarantine 24496 | -3/Quarantine | Loaded intel: 70 machine locations 24510 | -3/Quarantine | Found Alien Artifact 24546 | -3/Quarantine | Found Centrium Heavy Armor Plating 24586 | -3/Quarantine | Found Alien Impact Weapon 24616 | -3/Quarantine | Cryocooling Duct disabled 24631 | -3/Quarantine | Ambient heat levels rising (+20) 24631 | -3/Quarantine | Non-combat units ordered to evacuate 24708 | -3/Quarantine | Found Alien Artifact 24708 | -3/Quarantine | Identified Phase Redirector 25046 | -3/Quarantine | Spotted Alpha 7 25059 | -3/Quarantine | Destroyed Alpha 7 25122 | -3/Quarantine | Found Alien Artifact 25122 | -3/Quarantine | Identified Phase Armor 25225 | -3/Quarantine | Found Adv. Powered Armor 25372 | -3/Quarantine | Found Alien Artifact 25381 | -3/Quarantine | Found Alien Artifact 25419 | -3/Quarantine | Identified Hpw. Transdimensional Reconstructor 25419 | -3/Quarantine | Identified Dimensional Node Initializer 25419 | -3/Quarantine | Identified Subatomic Replicator 25419 | -3/Quarantine | Identified Core Stripper 25444 | -3/Quarantine | Cryocooling Duct disabled 25459 | -3/Quarantine | Ambient heat levels rising (+20) 25459 | -3/Quarantine | Combat units ordered to evacuate 25559 | -3/Quarantine | Quarantine Guard activated 25573 | -3/Quarantine | Found Alien Slashing Weapon 25598 | -3/Quarantine | Spotted Quarantine Guard 25600 | -3/Quarantine | Spotted Quarantine Guard 25601 | -3/Quarantine | Destroyed Quarantine Guard 25603 | -3/Quarantine | Destroyed Quarantine Guard 25605 | -3/Quarantine | Spotted Quarantine Guard 25606 | -3/Quarantine | Destroyed Quarantine Guard 25606 | -3/Quarantine | Spotted Quarantine Guard 25608 | -3/Quarantine | Spotted Quarantine Guard 25614 | -3/Quarantine | Destroyed Quarantine Guard 25617 | -3/Quarantine | Destroyed Quarantine Guard 25635 | -3/Quarantine | Spotted Quarantine Guard 25636 | -3/Quarantine | Spotted Quarantine Guard 25639 | -3/Quarantine | Destroyed Quarantine Guard 25648 | -3/Quarantine | Spotted Quarantine Guard 25650 | -3/Quarantine | Destroyed Quarantine Guard 25652 | -3/Quarantine | Destroyed Quarantine Guard 25664 | -3/Quarantine | Spotted Quarantine Guard 25668 | -3/Quarantine | Destroyed Quarantine Guard 25699 | -3/Quarantine | Discovered new exit (range 15) 25699 | -3/Quarantine | Spotted Quarantine Guard 25703 | -3/Quarantine | Destroyed Quarantine Guard 25732 | -3/Quarantine | Identified Sigix Broadsword 25740 | -3/Quarantine | System corruption reached 10% 25742 | -3/Quarantine | Entered Research 25742 | -2/Research | Warlord forces began assault on 0b10 25742 | -2/Research | Evolved 2 slots: Utility x2 25743 | -2/Research | Loaded intel: 117 machine locations 25806 | -2/Research | Found Hvy. Reactive Plating 25810 | -2/Research | Found Hvy. Reactive Plating 25852 | -2/Research | Research machine network offline 26036 | -2/Research | Build established: Hacker-Mutant 26210 | -2/Research | Borebot progress halted 26215 | -2/Research | Met DD-05H 26306 | -2/Research | Discovered new exit (range 16) 26323 | -2/Research | Spotted Tracker 26329 | -2/Research | Destroyed Tracker 26400 | -2/Research | Spotted Combat Programmer 26407 | -2/Research | Destroyed Combat Programmer 27145 | -2/Research | Borebot progress halted 27188 | -2/Research | Spotted Executioner 27191 | -2/Research | Spotted Striker 27191 | -2/Research | Warped through subspace 27262 | -2/Research | Borebot progress halted 27333 | -2/Research | Spotted Executioner 27334 | -2/Research | Spotted Executioner 27341 | -2/Research | Destroyed Executioner 27344 | -2/Research | Destroyed Executioner 27344 | -2/Research | Lost 3 allies 27357 | -2/Research | Found Corrupted Exp. Core Analyzer 27366 | -2/Research | Spotted Tracker 27366 | -2/Research | Spotted Tracker 27367 | -2/Research | Spotted Tracker 27369 | -2/Research | Destroyed Tracker 27373 | -2/Research | Spotted Executioner 27375 | -2/Research | Destroyed Tracker 27377 | -2/Research | Spotted Executioner 27377 | -2/Research | Spotted Combat Programmer 27380 | -2/Research | Warped through subspace 27412 | -2/Research | Destroyed Combat Programmer 27539 | -2/Research | Warlord destroyed during the assault 27539 | -2/Research | Lost 5 allies 27578 | -2/Research | Identified exit to Access 27639 | -2/Research | Met PL-HR7 27725 | -2/Research | Spotted Striker 27731 | -2/Research | Destroyed Striker 27762 | -2/Research | Discovered exit to Access (range 5) 27800 | -2/Research | Spotted Striker 27811 | -2/Research | Destroyed Striker 27873 | -2/Research | Spotted Executioner 27875 | -2/Research | Spotted Executioner 27880 | -2/Research | Destroyed Executioner 27883 | -2/Research | Destroyed Executioner 27917 | -2/Research | Spotted Executioner 27917 | -2/Research | Spotted Executioner 27918 | -2/Research | Spotted Striker 27919 | -2/Research | Spotted Executioner 27940 | -2/Research | Destroyed Striker 27979 | -2/Research | Destroyed Executioner 27985 | -2/Research | Destroyed Executioner 27989 | -2/Research | Destroyed Executioner 28022 | -2/Research | Spotted Striker 28026 | -2/Research | Spotted Striker 28026 | -2/Research | Spotted Striker 28032 | -2/Research | Spotted Executioner 28033 | -2/Research | Destroyed Striker 28035 | -2/Research | Destroyed Striker 28039 | -2/Research | Destroyed Striker 28045 | -2/Research | Destroyed Executioner 28066 | -2/Research | Spotted Striker 28073 | -2/Research | Destroyed Striker 28406 | -2/Research | Spotted Combat Programmer 28575 | -2/Research | Spotted Tracker 28577 | -2/Research | Spotted Tracker 28577 | -2/Research | Spotted Tracker 28586 | -2/Research | Destroyed Tracker 28587 | -2/Research | Destroyed Tracker 28589 | -2/Research | Destroyed Tracker 28618 | -2/Research | Spotted Combat Programmer 28623 | -2/Research | Spotted Combat Programmer 28632 | -2/Research | Destroyed Combat Programmer 28637 | -2/Research | Destroyed Combat Programmer 28712 | -2/Research | Found Com. Tesla Bomb Launcher 28714 | -2/Research | Found Com. Tesla Bomb Launcher 28725 | -2/Research | Discovered new exit (range 7) 28732 | -2/Research | Spotted Striker 28732 | -2/Research | Spotted Striker 28736 | -2/Research | Entered Testing 28737 | -2/Testing | Loaded intel: 62 machine locations 28859 | -2/Testing | Spotted Striker 28977 | -2/Testing | Spotted PL-ICUK3U4BFA 29039 | -2/Testing | System corruption reached 10% 29079 | -2/Testing | Destroyed 8 combat bots 29236 | -2/Testing | First assault squad dispatched 29330 | -2/Testing | Destroyed 7 combat bots 29353 | -2/Testing | Spotted PL-I02NQNH2XO 29379 | -2/Testing | Intercept squad dispatched 29382 | -2/Testing | Spotted Tracker 29382 | -2/Testing | Spotted Tracker 29390 | -2/Testing | Destroyed Tracker 29391 | -2/Testing | Spotted Combat Programmer 29391 | -2/Testing | Spotted Combat Programmer 29396 | -2/Testing | Destroyed Tracker 29400 | -2/Testing | Destroyed Combat Programmer 29409 | -2/Testing | Destroyed Combat Programmer 29460 | -2/Testing | Discovered exit to Access (range 9) 29559 | -2/Testing | Scanned by Researcher 29562 | -2/Testing | Destroyed 17 combat bots 29566 | -2/Testing | Lost 10 parts (4p1n3u2w) 29566 | -2/Testing | Found Prototype Protection 29566 | -2/Testing | Identified SHELL Armor 29572 | -2/Testing | Found Prototype Protection 29591 | -2/Testing | Identified Hvy. Regenerative Plating 29622 | -2/Testing | Lost 3 parts (2n1u) 29639 | -2/Testing | Destroyed 7 combat bots 29734 | -2/Testing | System corruption reached 30% 29808 | -2/Testing | Core integrity fell below 50% 29820 | -2/Testing | Entered Access 29820 | -1/Access | Evolved 2 slots: Propulsion x2 29821 | -1/Access | Loaded intel: 125 machine locations 29862 | -1/Access | Lost 10 parts (2p4n3u1w) 29936 | -1/Access | Spotted B-99 Colossus 30002 | -1/Access | Spotted B-99 Colossus 30016 | -1/Access | Crushed by falling debris 30028 | -1/Access | Door terminal overloaded 30030 | -1/Access | Discovered new exit (range 6) 30031 | *** | Escaped! Last Messages --------------- 30005_ Slug penetrates Wall. 30016_ The unstable cave ceiling collapses. 30016_ Crushed by falling debris. 30016_ Imp. Antigrav System destroyed. 30016_ System corrupted by crushing effect (+1). 30016_ Cld. Q-thruster destroyed. 30016_ System corrupted by crushing effect (+1). 30016_ Imp. Antigrav System destroyed. 30016_ System corrupted by crushing effect (+5). 30021_ Imp. Antigrav System destroyed. 30022_ Dropped Mic. Antimatter Reactor. 30026_ System corrupted: Matter fused (-5). 30026_ Connecting with Terminal... 30027_ Critical hit (Burn: +37). 30028_ System overload, Sealed Barrier opened. 30028_ Terminal disabled. 30029_ G-73 Enforcer destroyed. 30030_ The Access Shell folds into the floor. 30030_ EXIT=FOUND [Achievement: Data Run] Map ----- +----------------------------------------------------+ | ?????????????????????????????????????????????????? | | ???????????T"????????????????????????????????????? | | ???????????""????????????????????????????????????? | | ?????????????????????????????????????????????"""?? | | ?????????????????????????????????????????????"""?? | | ??????????????????????????????????????????????R"?? | | ?????????????????????????????????????????????"""?? | | ?????????????????????????????????????????????""??? | | ?????????????????????????????????????????????????? | | ?????????????????????????????????????????????????? | | ??????????# ????????????????????????????????????? | | ??????"???# ????????????????????????????????????? | | ?????"""??# ????????????????????????????????????? | | ????"""???# #???????????????????????????????????? | | ##???"????+ #???????????????????????????????????? | | +????????# #???????????????????????????????????? | | #????????# #???????????????????????????????????? | | ####?????# #??????????????????????????????"?"??? | | #?????# #?????###??????????????????????"Y"??? | | #?????# ####### ##########?????????????"""??? | | #?????# """T""" """"???????????????? | | #?????# """ " """"???????????????? | | ####### g """"???????????????? | | +## # # g[= """"???????????????? | | ??# # #; p%! "" """"???????????????? | | ??# # ## gp*[ @" """"???????????????? | | ??# # ## """"???????????????? | | ??# + ## """"???????????????? | | ??# # ## """"???????????????? | | ??# # ## """"???????????????? | | ?? + ## ####### ##########??????????????"???? | | ?## # ## #?????###??????????????????????"""??? | | ??# ####### #???????????????????????????????"""?? | | ??# #?????# #????????????????????????????????"??? | | ??# #?????# #???????????????????????????????????? | | ??? ??????# #???????????????????????????????????? | | ??? ??????# #???????????????????????????????????? | | ??? ?????? #???????????????????????????????????? | | ???#??????# ????????????????????????????????????? | | ??????????? ????????????????????????????????????? | | ??????????? ????????????????????????????????????? | | ?????????????????????????????????????????""??????? | | ?????????????????????????????????????????""??????? | | ?????????????????????????????????????????""??????? | | ?????????????????????????????????????????G???????? | | ?????????????????????????????????????????""??????? | | ?????????????????????????????????????????""??????? | | ?????????????????????????????????????????""??????? | | ?????????????????????????????????????????????????? | | ?????????????????????????????????????????????????? | +----------------------------------------------------+ Best States ------------- Heat Dissipation 159 Coolant Potential 100 Energy Generation 79 Energy Capacity 950 Matter Stores 300 Matter Capacity 300 Sight Range 16 Terrain Scan Density 10 Jamming Range 16 Cloak Strength 4 Corruption Block 13 Armor Coverage 1500 Resistance: KI 40 Resistance: TH 30 Resistance: EM 75 Weapon Cycling 20 Phase Shifting 20 Evasion (%) 65 Targeting Accuracy 12 Recoil Reduction 6 Particle Charging 30 Offensive Hacking 25 Defensive Hacking 10 Item Schematics ----------------- Combat Drone Bay | -7/Data Miner | Free Lgt. Regenerative Plating | -7/Data Miner | Free Biomechanical Wings | -7/Data Miner | Free Thermal Defense Suite | -7/Data Miner | Free Antimatter Cannon | -7/Data Miner | Free Hvy. Treads | -7/Data Miner | Free Recoil Nullifier | -7/Data Miner | Free Tesla Rifle | -7/Data Miner | Free Hpw. Shock Rifle | -7/Data Miner | Free Imp. Corruption Screen | -7/Data Miner | Free Imp. Coolant Injector | -7/Data Miner | Free Adv. Datajack | -7/Data Miner | Free Myomer Leg | -7/Data Miner | Free Quantum Capacitor | -6/Extension | Hacked Centrium Medium Armor Plating | -3/Research | Scanalyzed Adv. Terrain Scan Processor | -3/Research | Scanalyzed Imp. Weapon Shielding | -3/Research | Scanalyzed Hvy. Dispersion Rifle | -2/Testing | Archive Imp. Matter Compressor | -2/Testing | Archive Robot Schematics ------------------ L-41 Fighter | -7/Data Miner | Free G-47 Trooper | -7/Data Miner | Free Y-54 Guardian | -7/Data Miner | Free H-55 Commando | -7/Data Miner | Free H-66 Slayer | -7/Data Miner | Free P-60 Hacker | -7/Data Miner | Free Fabricated ------------ Quantum Capacitor | x2 | -5/Factory Quantum Capacitor | x2 | -3/Research Alien Tech Used ----------------- Integrated Dissipator Core Regenerator Phase Redirector Phase Armor Sigix Broadsword High-powered Transdimensional Reconstructor Transdimensional Reconstructor Core Stripper Achievements -------------- Data Run Challenges ------------ None Game ------ Seed SubatomicPersonalExoskeleton Manual? 0 Play Time 05:48:38 Cumulative 410.7 hours Start 2024.09.06 @ 18:44:23 End 2024.09.07 @ 01:20:00 Sessions 1 Manual Loads 0 Difficulty Rogue Special Mode None Game No. 148 Rogue 146 Adventurer 2 Explorer 0 Win Type 0 Total 22 Types 10/0/8/1/0/0/2/1/0 Lore% 77 Gallery% 86 Achievement% 77 Wizard Run 0 Options --------- Layout 0 ASCII 0 Keyboard 0 Movement Numpad Keybinds 0 Fullscreen 2 Font 24/Smallcaps Map View 76x50 Zoom Use 0% Tactical HUD 1 Map Filters NONE Filters NONE Steam 1 RUN: 18315fe7-dc3e-4961-8b64-d80a42fc9480